Workbook

Sheet V1
A1: Version 1 | E1: New Interiors | F1: Existing Interiors
E2: =SUM(E18,E34,E127,E177,E185,E86) -> 100 | F2: =SUM(F18,F34,F127,F177,F185,F86) -> 75
A3: Credit Name | C3: Total Available Points | D3: Requirement | E3: Point Distribution
A5: Eco Design Approach
A6: Eco Vision for Interior Design | C6: 2 | D6: Measure-1 | E6: 1 | F6: 1
D7: Measure-2
D8: Measure-3 | E8: 2 | F8: 2
D9: Measure-4
A10: Optimise Circulation Spaces | C10: 2 | D10: ≥ 25% | E10: 1 | F10: 1
D11: ≥ 30% | E11: 2 | F11: 2
A12: Eco-friendly commuting | C12: 1 | D12: Either option 1 or option 2
D13: Public transport | E13: 1 | F13: 1
D14: Shuttle Service
A15: Occupancy in a Green Facility | C15: 1 | D15: Yes / No | E15: 1 | F15: 1
A16: Commercial Lease Term/ Ownership | C16: 2 | D16: 3 years | E16: 1 | F16: 1
D17: 5 years | E17: 2 | F17: 2
A18: Total achievable points | E18: =E8+E11+E12+E15+E17+E13 -> 8 | F18: =F8+F11+F12+F15+F17+F13 -> 8
A20: Water Conservation
A21: Water efficient plumbing fixtures | C21: 12 | D21: 10% less than the baseline criteria | E21: 1 | F21: 1
D22: 12.5% less than the baseline criteria | E22: 2 | F22: 2
D23: 15% less than the baseline criteria | E23: 3 | F23: 3
D24: 17.5% less than the baseline criteria | E24: 4 | F24: 4
D25: 20% less than the baseline criteria | E25: 5 | F25: 5
D26: 22.5% less than the baseline criteria | E26: 6 | F26: 6
D27: 25% less than the baseline criteria | E27: 7 | F27: 7
D28: 27.5% less than the baseline criteria | E28: 8 | F28: 8
D29: 30% less than the baseline criteria | E29: 9 | F29: 9
D30: 32.5% less than the baseline criteria | E30: 10 | F30: 10
D31: 35% less than the baseline criteria | E31: 11 | F31: 11
D32: 37.5% less than the baseline criteria | E32: 12 | F32: 12
D33: 40% less than the baseline criteria | E33: Exemplary performance
A34: Total achievable points | E34: =E32 -> 12 | F34: =F32 -> 12
A36: Energy Efficiency
A37: Eco-friendly Refrigerants & Halons | C37: 1 | E37: 1 | F37: 1
A38: Efficient space conditioning | B38: Option 1A : Non Air-conditioned spaces ( Door & Window Openings) | C38: 6 | D38: 5% over baseline | E38: 1 | F38: 1
D39: 6% over baseline | E39: 2 | F39: 2
D40: 7% over baseline | E40: 3 | F40: 3
D41: 8% over baseline | E41: 4 | F41: 4
D42: 9% over baseline | E42: 5 | F42: 5
D43: 10% over baseline | E43: 6 | F43: 6
D44: 11% over baseline | E44: Exemplary performance
B45: Option 1B : Non Air-conditioned spaces (Alternate efficient cooling methods) | D45: 25% of the carpet area | E45: 1 | F45: 1
D46: 30% of the carpet area | E46: 2 | F46: 2
D47: 35% of the carpet area | E47: 3 | F47: 3
D48: 40% of the carpet area | E48: 4 | F48: 4
D49: 45% of the carpet area | E49: 5 | F49: 5
D50: 50% of the carpet area | E50: 6 | F50: 6
D51: 55% of the carpet area | E51: Exemplary performance
B52: Option 2: Conditioned spaces | D52: 50% of efficiently Conditioned spaces | E52: 1 | F52: 1
D53: 55% of efficiently Conditioned spaces | E53: 2 | F53: 2
D54: 60% of efficiently Conditioned spaces | E54: 3 | F54: 3
D55: 65% of efficiently Conditioned spaces | E55: 4 | F55: 4
D56: 70% of efficiently Conditioned spaces | E56: 5 | F56: 5
D57: 75% of efficiently Conditioned spaces | E57: 6 | F57: 6
D58: 95% of efficiently Conditioned spaces | E58: Exemplary performance
A59: Energy Efficient lighting 1. Lighting Power Density | C59: 2 | D59: 20% of Lighting Power Density | E59: 1 | F59: 1
D60: 25% of Lighting Power Density | E60: 2 | F60: 2
D61: 30% of Lighting Power Density | E61: Exemplary performance
A62: 2. Sensors | B62: Regularly occupied spaces | C62: 1 | D62: 75% of regularly occupied areas | E62: 1 | F62: 1
B63: Non-Regularly occupied spaces | D63: 95% of non regularly occupied areas
A64: Energy Efficient Appliance | C64: 1 | D64: Appliance-1 | E64: 1 | F64: 1
D65: Appliance-2
D66: Appliance-3
A67: Energy Metering & Management | B67: Sub-Metering | C67: 4 | D67: Measure-1 | E67: 1 | F67: 1
D68: Measure-2 | E68: 2 | F68: 2
B69: Building Management System | D69: Measure-1 | E69: 1 | F69: 1
D70: Measure-2 | E70: 2 | F70: 2
A71: On-site / Off-site Renewable Energy | B71: On-site renewable energy systems | C71: 6 | D71: 2% of the total energy consumption | E71: 1 | F71: 1
D72: 4% of the total energy consumption | E72: 2 | F72: 2
D73: 6% of the total energy consumption | E73: 3 | F73: 3
D74: 8% of the total energy consumption | E74: 4 | F74: 4
D75: 10% of the total energy consumption | E75: 5 | F75: 5
D76: 12% of the total energy consumption | E76: 6 | F76: 6
D77: 14% of the total energy consumption | E77: Exemplary performance
B78: Off-site renewable energy systems | D78: 5% of the total energy consumption | E78: 1 | F78: 1
D79: 10% of the total energy consumption | E79: 2 | F79: 2
D80: 15% of the total energy consumption | E80: 3 | F80: 3
D81: 20% of the total energy consumption | E81: 4 | F81: 4
D82: 25% of the total energy consumption | E82: 5 | F82: 5
D83: 30% of the total energy consumption | E83: 6 | F83: 6
D84: 35% of the total energy consumption | E84: Exemplary performance
A85: Embodied Energy | C85: 1 | E85: 1 | F85: 1
A86: Total achievable points | E86: 22 | F86: 21
A88: Interior Materials
A89: IM Mandatory Requirement 1 | C89: MR | D89: Segregation of Waste, Post Occupancy | E89: Required | F89: Required
A90: Waste Management (During Installation) | C90: 3 | D90: Percentage of Waste diverted away from landfill : 20% | E90: 1 | F90: NA
D91: Percentage of Waste diverted away from landfill : 40% | E91: 2
D92: Percentage of Waste diverted away from landfill : 60% | E92: 3
D93: Percentage of Waste diverted away from landfill : 80% | E93: Exemplary performance
A94: Local Materials | C94: 4 | D94: 20% of Local Materials | E94: 1 | F94: NA
D95: 30% of Local Materials | E95: 2
D96: 40% of Local Materials | E96: 3
D97: 50 %of Local Materials | E97: 4
D98: 60 %of Local Materials | E98: Exemplary performance
A99: Recycled Content Materials | B99: Source materials with recycled content | C99: 4 | D99: ≥ 10% of Materials with Recycled Content | E99: 1 | F99: NA
D100: ≥ 15% of Materials with Recycled Content | E100: 2
D101: ≥ 20% of Materials with Recycled Content | E101: 3
D102: ≥ 25% of Materials with Recycled Content | E102: 4
D103: ≥ 30% of Materials with Recycled Content | E103: Exemplary performance
B104: Source type I ecolabelled products | D104: 1 certified product(s) | E104: 1 | F104: NA
D105: 2 certified product(s) | E105: 2
D106: 3 certified product(s) | E106: 3
D107: 4 certified product(s) | E107: 4
D108: 5 certified product(s) | E108: Exemplary performance
A109: Salvaged Materials | C109: 2 | D109: ≥ 2.5% of Salvaged Materials | E109: 1 | F109: NA
D110: ≥ 5% of Salvaged Materials | E110: 2
D111: ≥ 7.5% of Salvaged Materials | E111: Exemplary performance
A112: Eco Friendly Wood Based Materials | C112: 6 | D112: 20% of total cost of ecofriendly woodbased material | E112: 1 | F112: NA
D113: 25% of total cost of ecofriendly woodbased material | E113: 2
D114: 30% of total cost of ecofriendly woodbased material | E114: 3
D115: 35% of total cost of ecofriendly woodbased material | E115: 4
D116: 40% of total cost of ecofriendly woodbased material | E116: 5
D117: 45% of total cost of ecofriendly woodbased material | E117: 6
D118: 50% of total cost of ecofriendly woodbased material | E118: Exemplary performance
A119: Eco-certified Interior Furniture | C119: 4 | D119: 10% of total furniture cost | E119: 1 | F119: 1
D120: 20% of total furniture cost | E120: 2 | F120: 2
D121: 30% of total furniture cost | E121: 3 | F121: 3
D122: 40% of total furniture cost | E122: 4
D123: 50% of total furniture cost | E123: Exemplary performance | F123: 4
A124: Purchase of Green Consumables | C124: 3 | D124: Measure-1 | E124: NA | F124: 3
D125: Measure-2
D126: Measure-3
A127: Total achievable points | E127: 23 | F127: 7
A129: Indoor Environment
A130: Tobacco Smoke Pollution | C130: Mandatory Requirement | D130: Required | E130: Required | F130: Required
A131: Fresh Air Ventilation Option 1: Mechanical ventilation | C131: Mandatory Requirement | D131: Design as per baseline | E131: Required | F131: Required
A132: Fresh Air Ventilation Option 2 : Natural Ventilation | B132: Regularly occupied area <150 sq m | D132: 0.04
B133: Regularly occupied area ≥150 sq.m | D133: 0.06
A134: Enhanced Fresh Air Ventilation Option 1: Mechanical ventilation | C134: 2 | D134: ≥ 5% more than baseline criteria | E134: 1 | F134: 1
D135: ≥ 10% more than baseline criteria | E135: 2 | F135: 2
A136: Enchanced Fresh Air Ventilation Option 2 : Natural Ventilation | B136: Regularly occupied area <150 sq m | D136: 0.06 | E136: 1 | F136: 1
D137: 0.08 | E137: 2 | F137: 2
B138: Regularly occupied area ≥150 sq.m | D138: 0.08 | E138: 1 | F138: 1
D139: 0.1 | E139: 2 | F139: 2
A140: Daylighting | C140: 4 | D140: ≥ 25% of regularly occupied Spaces with daylight | E140: 1 | F140: 1
D141: ≥ 50% of regularly occupied Spaces with daylight | E141: 2 | F141: 2
D142: ≥ 75% of regularly occupied Spaces with daylight | E142: 3 | F142: 3
D143: ≥ 95% of regularly occupied Spaces with daylight | E143: 4 | F143: 4
A144: Thermal Comfort | C144: 1 | D144: Yes / No | E144: NA | F144: 1
A145: Ergonomic Design | C145: 2 | D145: Measure-1 | E145: 1 | F145: 1
D146: Measure-2 | E146: 2 | F146: 2
A147: CO2 Monitoring | B147: Mechanical ventilation | C147: 2 | D147: 50% in regularly occupied areas | E147: 1 | F147: 1
D148: 95% in regularly occupied areas | E148: 2 | F148: 2
B149: Regularly occupied area <150 sq m | D149: 10% of openable area to total carpet area | E149: 1 | F149: 1
D150: 12% of openable area to total carpet area | E150: 2 | F150: 2
B151: Regularly occupied area ≥150 sq.m | D151: 12% of openable area to total carpet area | E151: 1 | F151: 1
D152: 14% of openable area to total carpet area | E152: 2 | F152: 2
A153: Indoor Plants | C153: 2 | D153: 50% of regularly occupied area | E153: 1 | F153: 1
D154: 95% of regularly occupied area | E154: 2 | F154: 2
A155: Material Acoustic performance | C155: 3 | D155: Ceiling Systems | E155: 1 | F155: NA
D156: Flooring Systems | E156: 1
D157: Office Type 1. Enclosed offices 2. Open office | E157: 1
A158: Outdoor Views | C158: 4 | D158: ≥ 40% of regularly occupied spaces having outdoor views | E158: 1 | F158: 1
D159: ≥ 50% of regularly occupied spaces having outdoor views | E159: 2 | F159: 2
D160: ≥ 60% of regularly occupied spaces having outdoor views | E160: 3 | F160: 3
D161: ≥ 70% of regularly occupied spaces having outdoor views | E161: 4 | F161: 4
D162: ≥ 80% of regularly occupied spaces having outdoor views | E162: Exemplary performance
A163: Minimise Indoor Pollutant Contamination | C163: 2 | D163: Measures-1 | E163: 1 | F163: 1
D164: Measures-2 | E164: 2 | F164: 2
A165: Low-Emitting Materials | C165: 4 | D165: Paints & Coatings | E165: 1 | F165: NA
D166: Adhesives | E166: 1
D167: Flooring Systems | E167: 1
D168: Composite Wood | E168: 1
A169: Indoor Air Quality Management, During Installation | C169: 2 | D169: Measures-1 | E169: 1 | F169: NA
D170: Measures-2
D171: Measures-3 | E171: 2
D172: Measures-4
A173: Interior Flush out | C173: 1 | D173: Yes / No | E173: 1 | F173: NA
A174: Occupant Well-being Facilities | C174: 2 | D174: 5% of occupants with access to recreational facilities at a given time | E174: 1 | F174: 1
D175: 10% of occupants with access to recreational facilities at a given time | E175: 2 | F175: 2
A176: Dedicated Dining Spaces | C176: 1 | D176: Yes / No | E176: NA | F176: 1
A177: Total achievable points | E177: 30 | F177: 22
A179: Innovation in Interior Design
A180: Innovation in Interior Design | C180: 1 | D180: Innovation or Exemplorray performance | E180: 1 | F180: 1
A181: Innovation in Interior Design | C181: 1 | D181: Innovation or Exemplorray performance | E181: 1 | F181: 1
A182: Innovation in Interior Design | C182: 1 | D182: Innovation or Exemplorray performance | E182: 1 | F182: 1
A183: Innovation in Interior Design | C183: 1 | D183: Innovation or Exemplorray performance | E183: 1 | F183: 1
A184: IGBC Accredited Professional | C184: 1 | D184: Yes / No | E184: 1 | F184: 1
A185: Total achievable points | E185: 5 | F185: =SUM(E180:E184) -> 5
B188: Certification Level | C188: New Interiors Points | D188: Existing Interiors Points
B189: Certified | C189: 30-44 | D189: 22-32
B190: Silver | C190: 45-59 | D190: 33-44
B191: Gold | C191: 60 -79 | D191: 45-59
B192: Platinum | C192: 80-100 | D192: 60-75

Sheet V2
A1: IGBC Green Interiors Checklist Ver 2 | E1: New Interiors | F1: Existing Interiors
E2: =E15+E31+E82+E122+E169+E177 -> 100 | F2: =F15+F31+F82+F122+F169+F177 -> 75
A3: Credit Name | C3: Total Available Points | D3: Requirement | E3: Point Distribution
A4: Eco Design Approach
A5: Optimise Circulation Spaces | C5: 2 | D5: ≥ 25% | E5: 1 | F5: 1
D6: ≥ 30% | E6: 2 | F6: 2
A7: Eco-friendly commuting | C7: 1 | D7: Either option 1 or option 2
D8: Public transport | E8: 1 | F8: 1
D9: Shuttle Service
A10: Occupancy in a Green Facility | C10: 1 | D10: Yes/No | E10: 1 | F10: 1
A11: Commercial Lease Term/ Ownership | C11: 2 | D11: 3 years | E11: 1 | F11: 1
D12: 5 years | E12: 2 | F12: 2
A13: Awareness on Sustainability Concepts | C13: 2 | D13: Display of permanent signages | E13: 1 | F13: 1
D14: Awareness sessions | E14: 1 | F14: 1
A15: Total achievable points | E15: 8 | F15: 8
A17: Water Conservation
A18: Water efficient plumbing fixtures | C18: 10 | D18: 15% less than the baseline criteria | E18: 1 | F18: 1
D19: 17.5% less than the baseline criteria | E19: 2 | F19: 2
D20: 20% less than the baseline criteria | E20: 3 | F20: 3
D21: 22.5% less than the baseline criteria | E21: 4 | F21: 4
D22: 25% less than the baseline criteria | E22: 5 | F22: 5
D23: 27.5% less than the baseline criteria | E23: 6 | F23: 6
D24: 30% less than the baseline criteria | E24: 7 | F24: 7
D25: 32.5% less than the baseline criteria | E25: 8 | F25: 8
D26: 35% less than the baseline criteria | E26: 9 | F26: 9
D27: 37.5% less than the baseline criteria | E27: 10 | F27: 10
D28: 40% less than the baseline criteria | E28: Exemplary performance
A29: Repurposing Rejected Water | C29: 2 | D29: Measure-1 | E29: 1 | F29: 1
D30: Measure-2 | E30: 1 | F30: 1
A31: Total achievable points | E31: 12 | F31: 12
A33: Energy Efficiency
A34: Eco-friendly Refrigerants & Halons | C34: MR | E34: Required | F34: Required
A35: Enhanced Eco-friendly Refrigerants | C35: 2 | D35: GWP ≤ 1,500 | E35: 1 | F35: 1
D36: GWP ≤ 1, 000 | E36: 2 | F36: 2
A37: Efficient space conditioning | B37: Option 1A : Non Air-conditioned spaces ( Door & Window Openings) | C37: 5 | D37: 5% over baseline | E37: 1 | F37: 1
D38: 6% over baseline | E38: 2 | F38: 2
D39: 7% over baseline | E39: 3 | F39: 3
D40: 8% over baseline | E40: 4 | F40: 4
D41: 10% over baseline | E41: 5 | F41: 5
D42: 12% over baseline | E42: Exemplary performance
B43: Option 1B : Non Air-conditioned spaces (Alternate efficient cooling methods) | D43: 25% of the carpet area | E43: 1 | F43: 1
D44: 30% of the carpet area | E44: 2 | F44: 2
D45: 35% of the carpet area | E45: 3 | F45: 3
D46: 40% of the carpet area | E46: 4 | F46: 4
D47: 45% of the carpet area | E47: 5 | F47: 5
D48: 50% of the carpet area | E48: Exemplary performance
B49: Option 2: Conditioned spaces | D49: 55% of Conditioned spaces of regularly occupied areas | E49: 1 | F49: 1
D50: 60% of Conditioned spaces of regularly occupied areas | E50: 2 | F50: 2
D51: 65% of Conditioned spaces of regularly occupied areas | E51: 3 | F51: 3
D52: 70% of Conditioned spaces of regularly occupied areas | E52: 4 | F52: 4
D53: 75% of Conditioned spaces of regularly occupied areas | E53: 5 | F53: 5
D54: 95% of Conditioned spaces of regularly occupied areas | E54: Exemplary performance
A55: Energy Efficient Lighting | B55: Lighting Power Density | C55: 4 | D55: 20% of Lighting Power Density | E55: 1 | F55: 1
D56: 25% of Lighting Power Density | E56: 2 | F56: 2
D57: 30% of Lighting Power Density | E57: Exemplary performance
B58: Sensors | D58: 75% of regularly occupied areas | E58: 1 | F58: 1
D59: 95% of non regulalry occupied areas | E59: 1 | F59: 1
D60: 95% of the total carpet area | E60: Exemplary performance
A61: Energy Efficient Appliances | C61: 1 | D61: Appliance-1 | E61: 1 | F61: 1
D62: Appliance-2
D63: Appliance-3
A64: Energy Metering & Management | B64: Sub-Metering | C64: 4 | D64: Measure-1 | E64: 1 | F64: 1
D65: Measure-2 | E65: 2 | F65: 2
B66: Building Management System | D66: Measure-1 | E66: 1 | F66: 1
D67: Measure-2 | E67: 2 | F67: 2
A68: On-site /Off-site Renewable Energy | B68: On-site renewable energy systems | C68: 6 | D68: 2% of the total energy consumption | E68: 1 | F68: 1
D69: 4% of the total energy consumption | E69: 2 | F69: 2
D70: 6% of the total energy consumption | E70: 3 | F70: 3
D71: 8% of the total energy consumption | E71: 4 | F71: 4
D72: 10% of the total energy consumption | E72: 5 | F72: 5
D73: 12% of the total energy consumption | E73: 6 | F73: 6
D74: 14% of the total energy consumption | E74: Exemplary performance
B75: (Off-site renewable energy systems) | D75: 5% of the total energy consumption | E75: 1 | F75: 1
D76: 10% of the total energy consumption | E76: 2 | F76: 2
D77: 15% of the total energy consumption | E77: 3 | F77: 3
D78: 20% of the total energy consumption | E78: 4 | F78: 4
D79: 25% of the total energy consumption | E79: 5 | F79: 5
D80: 30% of the total energy consumption | E80: 6 | F80: 6
D81: 35% of the total energy consumption | E81: Exemplary performance
A82: Total Achievable Points | E82: 22 | F82: 22
A84: Interior Materials
A85: Segregation of Waste, Post Occupancy | C85: MR | E85: Required | F85: Required
A86: Green Procurement Policy | C86: MR | E86: Required | F86: Required
A87: Waste Management (During Installation) | C87: 2 | D87: Percentage of Waste reused / sold / donated (by weight/ volume) : 40% | E87: 1 | F87: NA
D88: Percentage of Waste reused / sold / donated (by weight/ volume) : 60% | E88: 2
D89: Percentage of Waste reused / sold / donated (by weight/ volume) : 80% | E89: Exemplary performance
A90: Local Materials | C90: 2 | D90: 40% of Local Materials | E90: 1 | F90: NA
D91: 50% of Local Materials | E91: 2
D92: 60 %of Local Materials | E92: Exemplary performance
A93: Recycled Content Materials | C93: 2 | D93: ≥ 10% of Materials with Recycled Content | E93: 1 | F93: NA
D94: ≥ 15% of Materials with Recycled Content | E94: 2
D95: ≥ 30% of Materials with Recycled Content | E95: Exemplary performance
A96: Ecolabelled products | B96: Option1 : Ecolabelled products | C96: 2 | D96: 1 Product(s) | E96: 1 | F96: NA
D97: 2 Product(s)
D98: 3 Product(s) | E98: 2
D99: 4 Product(s)
D100: 6 Product(s) | E100: Exemplary performance
B101: Option 2 : atleast 10% of the total cost of products & materials used for construction | D101: 10% of the total cost | E101: 1
D102: 15% of the total cost | E102: 2
D103: 20% of the total cost | E103: Exemplary performance
A104: Salvaged Materials | C104: 2 | D104: ≥ 2.5% of Salvaged Materials | E104: 1 | F104: NA
D105: ≥ 5% of Salvaged Materials | E105: 2
D106: ≥ 7.5% of Salvaged Materials | E106: Exemplary performance
A107: Reuse of materials | C107: 2 | D107: ≥ 2.5% of Reused Materials | E107: 1 | F107: NA
D108: ≥ 5% of Reused Materials | E108: 2
D109: ≥ 7.5% of Reused Materials | E109: Exemplary performance
A110: Eco Friendly Wood Based Materials | C110: 4 | D110: 30% of cost of alternate wood products | E110: 1 | F110: NA
D111: 35% of cost of alternate wood products | E111: 2
D112: 40% of cost of alternate wood products | E112: 3
D113: 45% of cost of alternate wood products | E113: 4
D114: 50% of cost of alternate wood products | E114: Exemplary performance
A115: Eco-certified Interior Furniture | C115: 4 | D115: 10% of total furniture cost | E115: 1 | F115: 1
D116: 20% of total furniture cost | E116: 2 | F116: 2
D117: 30% of total furniture cost | E117: 3 | F117: 3
D118: 40% of total furniture cost | E118: 4 | F118: 4
D119: 50% of total furniture cost | E119: Exemplary performance
A120: Purchase of Green Consumables | C120: 2 | D120: Measure-1 | E120: 1 | F120: 1
D121: Measure-2 | E121: 2 | F121: 2
A122: Total Achievable Points | E122: =SUM(C87:C121) -> 22 | F122: 6
A124: Indoor Environment
A125: Tobacco Smoke Pollution | C125: MR | E125: Required | F125: Required
A126: Fresh Air Ventilation Option 1: Mechanical ventilation | C126: MR | D126: Design as per baseline | E126: Required | F126: Required
A127: Fresh Air Ventilation Option 2 : Natural Ventilation | B127: Regularly occupied area <150 sq m | D127: 0.04
B128: Regularly occupied area ≥150 sq.m | D128: 0.06
A129: Enhanced Fresh Air Ventilation Option 1: Mechanical ventilation | C129: 2 | D129: ≥ 5% more than baseline criteria | E129: 1 | F129: 1
D130: ≥ 10% more than baseline criteria | E130: 2 | F130: 2
A131: Enchanced Fresh Air Ventilation Option 2 : Natural Ventilation | B131: Regularly occupied area <150 sq m | D131: 0.06 | E131: 1 | F131: 1
D132: 0.08 | E132: 2 | F132: 2
B133: Regularly occupied area ≥150 sq.m | D133: 0.08 | E133: 1 | F133: 1
D134: 0.1 | E134: 2 | F134: 2
A135: Daylighting | C135: 4 | D135: ≥ 25% of Regularly occupied Spaces with Daylight | E135: 1 | F135: 1
D136: ≥ 50% of Regularly occupied Spaces with Daylight | E136: 2 | F136: 2
D137: ≥ 75% of Regularly occupied Spaces with Daylight | E137: 3 | F137: 3
D138: ≥ 95% of Regularly occupied Spaces with Daylight | E138: 4 | F138: 4
A139: Thermal Comfort | C139: 1 | D139: Temperature of 26 ± 2 deg C | E139: 1 | F139: 1
D140: Relative Humidity of 50 – 60 %
A141: Ergonomic Design | C141: 2 | D141: Measure-1 | E141: 1 | F141: 1
D142: Measure-2 | E142: 2 | F142: 2
A143: Air Quality Monitoring | C143: 3 | D143: Daily Monitoring | E143: 1 | F143: 1
D144: Daily and Quarterly Monitoring | E144: 2 | F144: 2
D145: Display of IAQ parameters | E145: 1 | F145: 1
D146: Enhanced Daily and Quarterly Monitoring | E146: Exemplary performance
A147: Indoor Plants | C147: 2 | D147: 50% of regularly occupied area | E147: 1 | F147: 1
D148: 95% of regularly occupied area | E148: 2 | F148: 2
A149: Material Acoustic performance | C149: 3 | D149: Ceiling Systems | E149: 1 | F149: NA
D150: Flooring Systems | E150: 1
D151: Office Type 1. Enclosed offices 2. Open office | E151: 1
A152: Outdoor Views | C152: 4 | D152: ≥ 40% of regularly occupied spaces having outdoor views | E152: 1 | F152: 1
D153: ≥ 50% of regularly occupied spaces having outdoor views | E153: 2 | F153: 2
D154: ≥ 60% of regularly occupied spaces having outdoor views | E154: 3 | F154: 3
D155: ≥ 70% of regularly occupied spaces having outdoor views | E155: 4 | F155: 4
D156: ≥ 80% of regularly occupied spaces having outdoor views | E156: Exemplary performance
A157: Minimise Indoor Pollutant Contamination | C157: 1 | D157: Measure-1 | E157: 1 | F157: 1
D158: Measure-2
A159: Low-Emitting Materials | C159: 4 | D159: Paints & Coatings | E159: 1 | F159: NA
D160: Adhesives | E160: 1
D161: Flooring Systems | E161: 1
D162: Composite Wood | E162: 1
A163: Indoor Air Quality Management, During Installation | C163: 1 | D163: Measure-1 | E163: 1 | F163: NA
D164: Measure-2
A165: Interior Flush out | C165: 1 | D165: Yes / No | E165: 1 | F165: NA
A166: Occupant Well-being Facilities | C166: 2 | D166: 5% of Recreational spaces For Building occupants | E166: 1 | F166: 1
D167: 10% of Recreational spaces For Building occupants | E167: 2 | F167: 2
A168: Dedicated Dining Spaces | C168: 1 | D168: Yes / No | E168: 1 | F168: 1
A169: Total Achievable Points | E169: =SUM(C129:C168) -> 31 | F169: 22
A171: Innovation in Interior Design
A172: Innovation in Interior Design | C172: 1 | D172: Carbon emissions* or Innovation or Exemplary performance | E172: 1 | F172: 1
A173: Innovation in Interior Design | C173: 1 | D173: Innovation or Exemplary performance | E173: 1 | F173: 1
A174: Innovation in Interior Design | C174: 1 | D174: Innovation or Exemplary performance | E174: 1 | F174: 1
A175: Innovation in Interior Design | C175: 1 | D175: Innovation or Exemplary performance | E175: 1 | F175: 1
A176: IGBC Accredited Professional | C176: 1 | D176: Yes / No | E176: 1 | F176: 1
A177: Total Achievable Points | E177: 5 | F177: 5
A179: (* Perform project life cycle analysis (LCA) to estimate embioded carbon as per standard indicated in the Green Interior Manual ver 2)
B181: Certification Level | C181: New Interiors Points | D181: Existing Interiors Points
B182: Certified | C182: 50-59 | D182: 37-44
B183: Silver | C183: 60-69 | D183: 45-52
B184: Gold | C184: 70-79 | D184: 53-60
B185: Platinum | C185: 80-100 | D185: 61-75

Sheet Overview
A1: Project Details
A2: Project ID | B2: IGBCGI250235
A3: Project Name | B3: Infoedge, Runwal R Square, Mumbai
A4: Project Category | B4: New Project
A5: Rating System | B5: GBC Green Interiors Rating System
A8: Certification Deatils
A9: Category | B9: New Project
A10: Version | B10: GBC Green Interiors Rating System
A11: Total Built-up area (sq ft) | B11: 1634
A12: No. of Floors | B12: 1
A15: Membership Deatils
A16: Is the parent organization an IGBC Member? | B16: NO
A19: Project Details
A20: Organization/ Individual Name | B20: Info edge India Ltd.
A21: Address Line 1 | B21: 902, 9th Floor, Runwal R Square, Andheri - Kurla Rd
A22: City | B22: Bhim Nagar, Andheri East, Mumbai
A23: State / UT | B23: MH
A24: Country | B24: India
A25: Pincode | B25: 400053
A28: Completion Status | B28: Completed
A31: Credit Summary
A32: 40
A33: Total Credits
A34: Credits Attempted
A35: Credits Not attempted
A38: Credit point summary
A40: Total credit points
A41: Credit points attempted
A42: Credit points not Attempted
A45: Payment Details | B45: 35400
A46: Registration Fee (INR/Rs) | B46: Online
A47: Payment Type | B47: CMS4915163431
A48: Demand Draft Number | B48: ICICI Bank
A49: Bank | B49: Preet Vihar, New Delhi
A50: Branch | B50: 28/2/2025
A51: Date | B51: 32400
A52: Amount paid (INR/Rs)
A55: Certification Fee
A56: Payment Type
A57: Demand Draft Number
A58: Bank
A59: Branch
A60: Date
A61: Amount paid (INR/Rs)
A64: Project Deatils
A65: No. of Floors | B65: 1
A66: Total Built-up area In sq.m | B66: 1634

Sheet Project Details
A1: Project Details
A2: Occupancy Type (Tenant/Owner) | B2: Tenant
A3: Total Lease Area | B3: 17534
A4: Total Carpet Area (sq ft) | B4: =SUM('Cal _ Area Statement Circulatio'!E4:E19) -> 9468
A5: Total carpet area (sq m) | B5: =B4/10.764 -> 879.5986622
A6: Regularly Occupied Area (sq ft) | B6: =SUMIF('Cal _ Area Statement Circulatio'!C4:C19, "Regularly occupied space", 'Cal _ Area Statement Circulatio'!E4:E19) -> 8855
A7: Area of Conditioned Spaces (sq ft) | B7: =SUMIF('Cal _ Area Statement Circulatio'!D4:D19, "Air conditioned space", 'Cal _ Area Statement Circulatio'!E4:E19) -> 4028
A8: Area of Non Conditioned Spaces (sq ft) | B8: =SUMIF('Cal _ Area Statement Circulatio'!D4:D19, "Non air conditioned space", 'Cal _ Area Statement Circulatio'!E4:E19) -> 5440
A9: Non regularly occupied spaces (sq ft) | B9: =SUMIF('Cal _ Area Statement Circulatio'!C4:C19, "Non regularly occupied space", 'Cal _ Area Statement Circulatio'!E4:E19) -> 613
A10: Design occupancy (No. of occupants as per the seating capacity indicated in floor plan) | B10: 178
A11: Transient occupancy (visitors and part-time employees) | B11: 4
A12: Permanent occupancy ( employee, housekeeping staff and security staff) | B12: =B10+6 -> 184
A13: Energy Details

Sheet Cal _ Area Statement Circulatio
B3: Description of spaces (e.g. core workstation, meeting room, electrical room, restroom etc) | C3: Regularly / non regularly occupied spaces | D3: Air conditioned / Non - Air conditioned spaces | E3: Total carpet area (sq ft) | F3: Total Area of Furniture (sq ft) | G3: Total Area of Storage (sq ft) | H3: Circulation space (sq ft) | I3: Area covered by daylight / occupancy / motion sensors (sq ft ) | N3: All the cells highlighted with yellow background are input fields (data to be entered by project team)
B4: Workstation Area | C4: Regularly occupied space | D4: Non air conditioned space | E4: =3963+1363 -> 5326 | F4: 1868 | G4: 4 | H4: =E4-(F4+G4) -> 3454
B5: Workstation Area-JS | C5: Regularly occupied space | D5: Air conditioned space | E5: 490 | F5: 203 | G5: 0 | H5: 287
B6: Café Area | C6: Regularly occupied space | D6: Air conditioned space | E6: 692 | F6: 320 | G6: 22 | H6: 350
B7: Hand wash Area | C7: Non regularly occupied space | D7: Non air conditioned space | E7: 67 | F7: 0 | G7: 46 | H7: 21 | K7: Setup file
B8: Dish wash Area | C8: Non regularly occupied space | D8: Non air conditioned space | E8: 47 | F8: 0 | G8: 37 | H8: 10
B9: Meetings Room Area | C9: Regularly occupied space | D9: Air conditioned space | E9: 742 | F9: 400 | G9: 0 | H9: 342 | I9: =E9 -> 742 | K9: Air conditioned space | L9: Regularly occupied space
B10: Cabins Area | C10: Regularly occupied space | D10: Air conditioned space | E10: 325 | F10: 170 | G10: 0 | H10: 155 | I10: =E10 -> 325 | K10: Non air conditioned space | L10: Non regularly occupied space
B11: UPS Room Area | C11: Non regularly occupied space | D11: Air conditioned space | E11: 95 | F11: 24 | G11: 18 | H11: 53
B12: AHU Room Area | C12: Non regularly occupied space | D12: Air conditioned space | E12: 279 | F12: 0 | G12: 0 | H12: 279
B13: Reprographic/ Store Area | C13: Non regularly occupied space | D13: Air conditioned space | E13: 43 | F13: 10 | G13: 6 | H13: 27 | I13: =E13 -> 43
B14: Reception Area | C14: Regularly occupied space | D14: Air conditioned space | E14: 319 | F14: 219 | G14: 0 | H14: 100
B15: Phone Booths Area | C15: Regularly occupied space | D15: Air conditioned space | E15: 260 | F15: 87 | G15: 0 | H15: 173 | I15: =E15 -> 260
B16: Lounge Areas | C16: Regularly occupied space | D16: Air conditioned space | E16: 177 | F16: =E16-140 -> 37 | G16: 0 | H16: 140
B17: Server Room | C17: Non regularly occupied space | D17: Air conditioned space | E17: 82 | F17: 6 | G17: 0 | H17: 76
B18: Board Room | C18: Regularly occupied space | D18: Air conditioned space | E18: 524 | F18: 243 | G18: 7 | H18: 274 | I18: =H18 -> 274
B21: Optimise Circulation Spaces
B22: Total carpet area (sq ft) | H22: =SUM(E4:E19) -> 9468
B23: Total circulation area (sq ft) | H23: =SUM(H4:H19) -> 5741
B24: Percentage of circulation area | H24: =H23/H22 -> 0.6063582594
B26: Energy Efficient Lighting (Sensors Regularly occupied spaces )
B27: Total regularly occupied area (sq ft) | H27: =SUMIF(C4:C19, "Regularly occupied space", E4:E19) -> 8855
B28: Total regularly occupied area covered by sensors (sq ft) | H28: =SUMIF(C4:C19, "Regularly occupied space", I4:I19) -> 1601
B29: Percentage of regularly occupied spaces covered by sensors | H29: =H28/H27 -> 0.1808018069
B31: Energy Efficient Lighting (Sensors Non - Regularly occupied spaces )
B32: Total non regularly occupied area (sq ft) | H32: =SUMIF(C4:C19, "Non regularly occupied space", E4:E19) -> 613
B33: Total non regularly occupied area covered by sensors (sq ft) | H33: =SUMIF(C4:C19, "Non regularly occupied space", I4:I19) -> 43
B34: Percentage of non regularly occupied spaces covered by sensors | H34: =H33/H32 -> 0.07014681892
B38: 1. Based on the percentage savings, points achieved by the project team to be automatically reflected in checklist and respective credit page. Refer to the point distribution sheet V1 & V2 2. Provide multiple addition of rows for multiple input field 3. Change name of sheet to "Cal _ Area Statement/Circulation/Sensors"

Sheet Water efficient plumbing fixtur
E2: FTE CALCULATION
F3: No's | G3: Time spent (hr) | H3: FTE
B4: All the cells filled with yellow, the values to be entered by project team | E4: Permanent Occupancy (employees and house-keeping staff) | F4: ='Project Details'!B12 -> 184 | G4: 9 | H4: =((F4*G4)/8) -> 207
E5: Part-time employees | F5: 0 | G5: 0 | H5: =((F5*G5)/8) -> 0
B6: All the cells filled with pink, the values to be hyperlinked from project details | E6: Transient Occupancy (Visitors ) (assuming a visitor spends 20 mins in the building , therefore 20/60 = 0.3 hrs) | F6: ='Project Details'!B11 -> 4 | G6: 1 | H6: =((F6*G6)/8) -> 0.5
E8: Total FTE | H8: =SUM(H4:H6) -> 207.5
E9: Total Male Occupants | H9: =H8/2 -> 103.75
E10: Total Female Occupants | H10: =H8/2 -> 103.75
E13: WATER REDUCTION CALCULATION
E14: Fixture type | F14: Duration | G14: Estimated Daily Uses per FTE | I14: Total FTE | J14: Baseline | M14: Proposed
J15: Maximum Flow Rate/ Consumption | K15: Unit | L15: Water Consumption (per day) | M15: Maximum Flow Rate/ Consumption | N15: Unit | O15: Water Consumption (per day)
E16: Water Closet (Full flush) | F16: 1 | G16: 1 | H16: Male | I16: =H9 -> 103.75 | J16: 6 | K16: LPF | L16: =(F16*G16*I16*J16) -> 622.5 | M16: 4 | N16: LPF | O16: =(F16*G16*I16*M16) -> 415
F17: 1 | G17: 1 | H17: Female | I17: =H10 -> 103.75 | J17: 6 | K17: LPF | L17: =(F17*G17*I17*J17) -> 622.5 | M17: 4 | N17: LPF | O17: =(F17*G17*I17*M17) -> 415
E18: Water Closet (Half flush) | F18: 1 | G18: 2 | H18: Female | I18: =H10 -> 103.75 | J18: 3 | K18: LPF | L18: 622.5 | M18: 2 | N18: LPF | O18: 415
E19: Urinals | F19: 1 | G19: 2 | H19: Male | I19: =H9 -> 103.75 | J19: 4 | K19: LPF | L19: =(F19*G19*I19*J19) -> 830 | M19: 1.5 | N19: LPF | O19: 311.25
E20: Kitchen/Pantry Faucet | F20: 0.25 | G20: 4 | H20: Both | I20: =H8 -> 207.5 | J20: 6 | K20: LPM | L20: 1245 | M20: 3 | N20: LPM | O20: 622.5
E21: Faucets/Taps | F21: 0.25 | G21: 4 | H21: Both | I21: =H8 -> 207.5 | J21: 6 | K21: LPM | L21: 1245 | M21: 4.5 | N21: LPM | O21: 933.75
E22: Health Faucet | F22: 0.25 | G22: 1 | H22: Both | I22: =H8 -> 207.5 | J22: 6 | K22: LPM | L22: 311.25 | M22: 3 | N22: LPM | O22: 155.625
E23: Showerhead/ Handheld Spray | F23: 8 | G23: 0.1 | H23: Both | I23: =H8 -> 207.5 | J23: 10 | K23: LPM | L23: 1660 | M23: 0 | N23: LPM | O23: 0
J25: Base case To be added | K25: Design case To be added
E26: Daily volume from flush fixtures (Black water) | J26: =SUM(L16,L17,L18,L19,L22) -> 3008.75 | K26: =SUM(O16,O17,O18,O19,O22) -> 1711.875 | L26: Black water includes water from WC, urinal, health faucet
E27: Daily volume from flow fixtures (Grey water) | J27: =SUM(L23,L20,L21) -> 4150 | K27: =SUM(O23,O21,O20) -> 1556.25 | L27: Grey water includes water from pantry faucet, faucet, shower head
E28: Annual Working Days | J28: 2
E29: Annual volume from flush fixtures (Black water) | J29: =J26*J28 -> 6017.5 | K29: =K26*J28 -> 3423.75
E30: Annual volume from flow fixtures (Grey water) | J30: =J27*J28 -> 8300 | K30: =K27*J28 -> 3112.5
E31: Annual volume from flush & flow fixtures | J31: =SUM(J29:J30) -> 14317.5 | K31: =SUM(K29:K30) -> 6536.25
E32: Percentage Savings (%) | J32: =(J31-K31)/J31 -> 0.5434782609

Sheet Conditioned space
D1: Actual Efficiency | H1: Baseline Values | K1: Savings calculation
A2: Type of air conditioning system installed | B2: Qty | C2: Capacity (kWr) | D2: Unit | E2: Value | F2: Refrigerant Type | G2: Refrigerant GWP | H2: Unit | I2: Value | J2: Meets the Credit Compliance | K2: Total Cooling capacity | L2: Hours of Operation | M2: Days of Operations | N2: Actual Annual Energy consumption (kWh)
A3: Unitary Split AC | B3: 2 | C3: 3.5 | D3: BEE Star Rating | E3: 4 | F3: R-32 | G3: =VLOOKUP(F3,$X$26:$Y$46,2,FALSE) -> 675 | H3: =D3 -> BEE Star Rating | I3: =IF(AND(D3="BEE Star Rating",A3="Unitary Split AC"),U26,0) -> 3 | J3: =IF(E3>I3,"True","False") -> True | K3: =C3*B3 -> 7 | L3: 12 | M3: 250 | N3: =IF(AND(D3=AA25,E3=AA37),K3/AB37*L3*M3,0) -> 5675.675676
A4: VRV/VRF | B4: 2 | C4: 13.4 | D4: EER | E4: 3.3 | F4: R-32 | G4: =VLOOKUP(F4,$X$26:$Y$46,2,FALSE) -> 675 | H4: =D4 -> EER | I4: =IF(AND(D4="EER",A4="VRV/VRF",C4<40),U66,0) -> 3.28 | J4: =IF(E4>I4,"True","False") -> True | K4: =B4*C4 -> 26.8 | L4: 12 | M4: 250 | N4: =K4/E4*L4*M4 -> 24363.63636
A5: Water Cooled Chiller | B5: 3 | C5: 13.4 | D5: COP | E5: 3.3 | F5: R-32 | G5: =VLOOKUP(F5,$X$26:$Y$46,2,FALSE) -> 675 | H5: =D5 -> COP | I5: =IF(AND(A5="Water Cooled Chiller",D5="COP",C5<260),U45,0) -> 0 | J5: =IF(E5>I5,"True","False") -> True | K5: =B5*C5 -> 40.2 | L5: 12 | M5: 250 | N5: =K5/E5*L5*M5 -> 36545.45455
G6: =VLOOKUP(F6,$X$26:$Y$46,2,FALSE) ->  | H6: =D6 -> 0 | I6: 0 | J6: =IF(E6>I6,"True","False") -> False
H7: 0 | I7: 0 | J7: False
H8: 0 | I8: 0 | J8: False
H9: 0 | I9: 0 | J9: False
G10: =VLOOKUP(F10,$X$26:$Y$46,2,FALSE) ->  | H10: 0 | I10: 0 | J10: False
H11: 0 | I11: 0 | J11: False
H12: 0 | I12: 0 | J12: False
H13: 0 | I13: 0 | J13: False
H14: 0 | I14: 0 | J14: False
H15: 0 | I15: 0 | J15: False
A20: Air Conditioned Spaces | B20: Type of air conditioner | C20: Scope of air conditioner | D20: Area of the space (sq ft) | E20: Area Meeting the credit compliance | F20: Refrigerant GWP | P20: Type of Air Conditioning System
A22: =_xlfn._xlws.FILTER('Cal _ Area Statement Circulatio'!B4:B19,'Cal _ Area Statement Circulatio'!D4:D19 = "Air conditioned space") -> Workstation Area-JS | B22: Unitary Split AC | C22: client | D22: =_xlfn._xlws.FILTER('Cal _ Area Statement Circulatio'!E4:E19,'Cal _ Area Statement Circulatio'!D4:D19 = "Air conditioned space") -> 490 | E22: =IF(AND(B22=A3,J3="True"),D22,0) -> 490 | F22: =VLOOKUP(B22,$A$3:$G$5,7,FALSE) -> 675 | P22: Units check | S22: Baseline values | X22: Refrigerant type & GWP | AA22: Savings Calculation
A23: Café Area | B23: VRV/VRF | C23: client | D23: 692 | E23: =IF(AND(B23=A4,J4="True"),D23,0) -> 692 | F23: =VLOOKUP(B23,$A$3:$G$5,7,FALSE) -> 675
A24: Meetings Room Area | B24: Water Cooled Chiller | C24: client | D24: 742 | E24: =IF(AND(B24=A5,J5="True"),D24,0) -> 742 | F24: =VLOOKUP(B24,$A$3:$G$5,7,FALSE) -> 675
A25: Cabins Area | B25: Water Cooled Chiller | C25: client | D25: 325 | E25: =IF(AND(B25=A6,J6="True"),D25,0) -> 0 | F25: =VLOOKUP(B25,$A$3:$G$5,7,FALSE) -> 675 | P25: Type | Q25: Unit | S25: Type | T25: Cooling Capacity (kWr) | U25: Baseline Value | V25: Unit | X25: Refrigerant Name | Y25: GWP (AR4) | AA25: BEE Star Rating | AB25: ISEER Values
A26: UPS Room Area | B26: Water Cooled Chiller | C26: client | D26: 95 | E26: 0 | F26: =VLOOKUP(B26,$A$3:$G$5,7,FALSE) -> 675 | P26: Unitary Split AC | Q26: BEE Star Rating | S26: Unitary Split AC | T26: ≤ 10.5 | U26: 3 | V26: BEE Star Rating | X26: R-22 | Y26: 1810 | AA26: 3 | AB26: 3.5
A27: AHU Room Area | D27: 279
A28: Reprographic/ Store Area | D28: 43
A29: Reception Area | D29: 319
A30: Phone Booths Area | D30: 260
A31: Lounge Areas | D31: 177
A32: Server Room | D32: 82
A33: Board Room | D33: 524
Q37: ISEER | T37: > 10.5 | U37: 2.8 | V37: EER / ISEER | X37: R-134a | Y37: 1430 | AA37: 4 | AB37: 3.7
S38: Unitary Cassette AC | T38: ≤ 10.5 | U38: 3 | V38: BEE Star Rating | X38: R-410A | Y38: 2088 | AA38: 5 | AB38: 4.5
A39: Efficient Space Conditioning (Conditioned Spaces) | T39: > 10.5 | U39: 2.8 | V39: EER / ISEER | X39: R-407C | Y39: 1774
A40: Total air conditioned area | E40: =SUM(_xlfn.ANCHORARRAY(D22)) -> 4028 | P40: Unitary Cassette Unit | Q40: BEE Star Rating | S40: Unitary Packaged Air conditioning | T40: ≤ 10.5 | U40: 3 | V40: BEE Star Rating | X40: R-32 | Y40: 675
A41: Total efficiently air conditioned area | E41: =SUM(E22:E26) -> 1924 | Q41: ISEER | T41: > 10.5 | U41: 2.8 | V41: EER / ISEER | X41: R-1234yf | Y41: 4
A42: Percentage of area efficiently air conditioned | E42: =E41/E40 -> 0.4776564052 | X42: R-1234ze | Y42: 6
X43: R-513A | Y43: 631
A44: Enhanced Eco-friendly Refrigerants | P44: VRV/VRF | Q44: EER | S44: Type | T44: Cooling Capacity (kWr) | U44: Baseline Value COP | V44: Baseline Value IPLV | X44: R-290 | Y44: 3
A45: Meeting the GWP Credit Requirement | E45: =IF(SUMIFS(_xlfn.ANCHORARRAY(D22),F22:F26, "<1000") >= 0.95 * SUM(_xlfn.ANCHORARRAY(D22)), "For 2 points", IF(SUMIFS(_xlfn.ANCHORARRAY(D22), F22:F26, "<1500") >= 0.95 * SUM(_xlfn.ANCHORARRAY(D22)), "For 1 point", "Not Meeting")) ->  | F45: 95% of total air conditioned area should meet threshold levels indicated to achieve points | Q45: COP | S45: Water Cooled Chiller | T45: <260 | U45: 4.7 | V45: 5.8 | X45: R-744 | Y45: 1
Q46: ISEER | T46: ≥260 &<530 | U46: 4.9 | V46: 5.9 | X46: R-123 | Y46: 77
P47: Water Cooled Chiller | Q47: COP | T47: ≥530 &<1050 | U47: 5.4 | V47: 6.5
Q48: IPLV | T48: ≥1050 & ≥ 1580 | U48: 5.8 | V48: 6.8
P49: Water Cooled Scroll Chiller | Q49: COP | T49: ≥ 1580 | U49: 6.3 | V49: 7
Q50: IPLV
B51: All the cells highlighted with yellow background are input fields (data to be entered by project team) | P51: Water Cooled Rotary Screw Chiller | Q51: COP | S51: Water Cooled Scroll Chiller | T51: < 264 | U51: 4.2 | V51: 5
Q52: IPLV | T52: ≥ 264 and < 526 | U52: 4.65 | V52: 5.4
P53: Air Cooled Chiller | Q53: EER
Q54: COP | S54: Water Cooled Rotary Screw Chiller | T54: < 264 | U54: 4.2 | V54: 5
Q55: IPLV | T55: ≥ 264 and < 526 | U55: 4.65 | V55: 5.4
P56: Air Cooled Scroll Chiller | Q56: COP | T56: ≥ 526 and < 1055 | U56: 5 | V56: 5.7
Q57: IPLV
P58: Unitary Packaged Air Conditioning | Q58: BEE Star Rating | S58: Air Cooled Chiller | T58: <260 | U58: 2.8 | V58: 3.5
Q59: EER | T59: ≥260 | U59: 3 | V59: 3.7
Q60: ISEER
Q61: COP | S61: Air Cooled Scroll Chiller | T61: < 264 | U61: 2.9 | V61: 3.4
P62: Others | Q62: BEE Star Rating | T62: ≥ 264 | U62: 3 | V62: 3.55
Q63: ISEER
Q64: COP
Q65: EER | S65: VRV/VRF | T65: Cooling Category (kWr) | U65: EER (W/W) | V65: IEER (W/W)
Q66: IPLV | T66: < 40 | U66: 3.28 | V66: 4.36
Q67: Others | T67: ≥ 40 and < 70 | U67: 3.26 | V67: 4.34
T68: ≥ 70 | U68: 3.02 | V68: 4.07

Sheet Cal _ Natural Ventilation
A1: S.No | B1: Regularly occupied spaces (eg. Core workstation, meeting room, cabin etc) | C1: Carpet area of regularly occupied space (sq m) Formula to convert sq ft to sq m Square feet / 10.764 | D1: Openable Window Area- Towards Exterior (sq m) | E1: Openable Door Area -Towards Exterior (sq m) | F1: Total Opening Area (sq m) | G1: % of opening area to total carpet area (Designed) | H1: Fresh Air Natural Ventilation | K1: CO2 Monitoring
H2: Meets Mandatory (True/False) | I2: Meets Enhanced for 1 point (Yes/No) | J2: Meets Enhanced for 2 point (Yes/No) | K2: Meets credit compliance for 1 point (Yes/No) | L2: Meets Enhanced for 2 point (Yes/No)
A3: 1 | B3: =_xlfn._xlws.FILTER('Cal _ Area Statement Circulatio'!B4:B19,('Cal _ Area Statement Circulatio'!C4:C19="Regularly occupied space")*('Cal _ Area Statement Circulatio'!D4:D19="Non air conditioned space")) -> Workstation Area | C3: =_xlfn._xlws.FILTER('Cal _ Area Statement Circulatio'!E4:E19,('Cal _ Area Statement Circulatio'!C4:C19="Regularly occupied space")*('Cal _ Area Statement Circulatio'!D4:D19="Non air conditioned space"))/10.764 -> 494.7974731 | D3: 111 | E3: 1 | F3: =SUM(D3:E3) -> 112 | G3: =F3/C3 -> 0.2263552385 | H3: =IF(AND(C3<=150, G3>=0.04), TRUE, IF(AND(C3>150, G3>=0.06), TRUE, FALSE)) -> TRUE | I3: =IF(AND(C3<=150, G3>=0.06), TRUE, IF(AND(C3>150, G3>=0.08), TRUE, FALSE)) -> TRUE | J3: =IF(AND(C3<=150, G3>=0.08), TRUE, IF(AND(C3>150, G3>=0.1), TRUE, FALSE)) -> TRUE | K3: =IF(AND(C3<=150, G3>=0.1), TRUE, IF(AND(C3>150, G3>=0.12), TRUE, FALSE)) -> TRUE | L3: =IF(AND(C3<=150, G3>=0.12), TRUE, IF(AND(C3>150, G3>=0.14), TRUE, FALSE)) -> TRUE | O3: All the cells highlighted with yellow background are input fields (data to be entered by project team)
A4: 2 | B4: =_xlfn._xlws.FILTER('Cal _ Area Statement Circulatio'!B5:B20,('Cal _ Area Statement Circulatio'!C5:C20="Regularly occupied space")*('Cal _ Area Statement Circulatio'!D5:D20="Non air conditioned space")) ->  | C4: =_xlfn._xlws.FILTER('Cal _ Area Statement Circulatio'!E5:E20,('Cal _ Area Statement Circulatio'!C5:C20="Regularly occupied space")*('Cal _ Area Statement Circulatio'!D5:D20="Non air conditioned space"))/10.764 ->  | D4: 1 | E4: 3 | F4: =SUM(D4:E4) -> 4 | G4: =F4/C4 ->  | H4: =IF(AND(C4<=150, G4>=0.04), TRUE, IF(AND(C4>150, G4>=0.06), TRUE, FALSE)) ->  | I4: =IF(AND(C4<=150, G4>=0.06), TRUE, IF(AND(C4>150, G4>=0.08), TRUE, FALSE)) ->  | J4: =IF(AND(C4<=150, G4>=0.08), TRUE, IF(AND(C4>150, G4>=0.1), TRUE, FALSE)) ->  | K4: =IF(AND(C4<=150, G4>=0.1), TRUE, IF(AND(C4>150, G4>=0.12), TRUE, FALSE)) ->  | L4: =IF(AND(C4<=150, G4>=0.12), TRUE, IF(AND(C4>150, G4>=0.14), TRUE, FALSE)) -> 
A5: 3 | B5: =_xlfn._xlws.FILTER('Cal _ Area Statement Circulatio'!B6:B21,('Cal _ Area Statement Circulatio'!C6:C21="Regularly occupied space")*('Cal _ Area Statement Circulatio'!D6:D21="Non air conditioned space")) ->  | C5: =_xlfn._xlws.FILTER('Cal _ Area Statement Circulatio'!E6:E21,('Cal _ Area Statement Circulatio'!C6:C21="Regularly occupied space")*('Cal _ Area Statement Circulatio'!D6:D21="Non air conditioned space"))/10.764 ->  | D5: 2 | E5: 1 | F5: 3
A6: 4 | B6: =_xlfn._xlws.FILTER('Cal _ Area Statement Circulatio'!B7:B22,('Cal _ Area Statement Circulatio'!C7:C22="Regularly occupied space")*('Cal _ Area Statement Circulatio'!D7:D22="Non air conditioned space")) ->  | C6: =_xlfn._xlws.FILTER('Cal _ Area Statement Circulatio'!E7:E22,('Cal _ Area Statement Circulatio'!C7:C22="Regularly occupied space")*('Cal _ Area Statement Circulatio'!D7:D22="Non air conditioned space"))/10.764 ->  | D6: 1 | E6: 3 | F6: 4
B7: =_xlfn._xlws.FILTER('Cal _ Area Statement Circulatio'!B8:B23,('Cal _ Area Statement Circulatio'!C8:C23="Regularly occupied space")*('Cal _ Area Statement Circulatio'!D8:D23="Non air conditioned space")) ->  | C7: =_xlfn._xlws.FILTER('Cal _ Area Statement Circulatio'!E8:E23,('Cal _ Area Statement Circulatio'!C8:C23="Regularly occupied space")*('Cal _ Area Statement Circulatio'!D8:D23="Non air conditioned space"))/10.764 ->  | F7: 0
B8: =_xlfn._xlws.FILTER('Cal _ Area Statement Circulatio'!B9:B24,('Cal _ Area Statement Circulatio'!C9:C24="Regularly occupied space")*('Cal _ Area Statement Circulatio'!D9:D24="Non air conditioned space")) ->  | C8: =_xlfn._xlws.FILTER('Cal _ Area Statement Circulatio'!E9:E24,('Cal _ Area Statement Circulatio'!C9:C24="Regularly occupied space")*('Cal _ Area Statement Circulatio'!D9:D24="Non air conditioned space"))/10.764 ->  | F8: 0
B9: =_xlfn._xlws.FILTER('Cal _ Area Statement Circulatio'!B10:B25,('Cal _ Area Statement Circulatio'!C10:C25="Regularly occupied space")*('Cal _ Area Statement Circulatio'!D10:D25="Non air conditioned space")) ->  | C9: =_xlfn._xlws.FILTER('Cal _ Area Statement Circulatio'!E10:E25,('Cal _ Area Statement Circulatio'!C10:C25="Regularly occupied space")*('Cal _ Area Statement Circulatio'!D10:D25="Non air conditioned space"))/10.764 ->  | F9: 0
B10: =_xlfn._xlws.FILTER('Cal _ Area Statement Circulatio'!B11:B26,('Cal _ Area Statement Circulatio'!C11:C26="Regularly occupied space")*('Cal _ Area Statement Circulatio'!D11:D26="Non air conditioned space")) ->  | C10: =_xlfn._xlws.FILTER('Cal _ Area Statement Circulatio'!E11:E26,('Cal _ Area Statement Circulatio'!C11:C26="Regularly occupied space")*('Cal _ Area Statement Circulatio'!D11:D26="Non air conditioned space"))/10.764 ->  | F10: 0
B11: =_xlfn._xlws.FILTER('Cal _ Area Statement Circulatio'!B12:B27,('Cal _ Area Statement Circulatio'!C12:C27="Regularly occupied space")*('Cal _ Area Statement Circulatio'!D12:D27="Non air conditioned space")) ->  | C11: =_xlfn._xlws.FILTER('Cal _ Area Statement Circulatio'!E12:E27,('Cal _ Area Statement Circulatio'!C12:C27="Regularly occupied space")*('Cal _ Area Statement Circulatio'!D12:D27="Non air conditioned space"))/10.764 ->  | F11: 0
B12: =_xlfn._xlws.FILTER('Cal _ Area Statement Circulatio'!B13:B28,('Cal _ Area Statement Circulatio'!C13:C28="Regularly occupied space")*('Cal _ Area Statement Circulatio'!D13:D28="Non air conditioned space")) ->  | C12: =_xlfn._xlws.FILTER('Cal _ Area Statement Circulatio'!E13:E28,('Cal _ Area Statement Circulatio'!C13:C28="Regularly occupied space")*('Cal _ Area Statement Circulatio'!D13:D28="Non air conditioned space"))/10.764 ->  | F12: 0
B13: =_xlfn._xlws.FILTER('Cal _ Area Statement Circulatio'!B14:B29,('Cal _ Area Statement Circulatio'!C14:C29="Regularly occupied space")*('Cal _ Area Statement Circulatio'!D14:D29="Non air conditioned space")) ->  | C13: =_xlfn._xlws.FILTER('Cal _ Area Statement Circulatio'!E14:E29,('Cal _ Area Statement Circulatio'!C14:C29="Regularly occupied space")*('Cal _ Area Statement Circulatio'!D14:D29="Non air conditioned space"))/10.764 ->  | F13: 0
B14: =_xlfn._xlws.FILTER('Cal _ Area Statement Circulatio'!B15:B30,('Cal _ Area Statement Circulatio'!C15:C30="Regularly occupied space")*('Cal _ Area Statement Circulatio'!D15:D30="Non air conditioned space")) ->  | C14: =_xlfn._xlws.FILTER('Cal _ Area Statement Circulatio'!E15:E30,('Cal _ Area Statement Circulatio'!C15:C30="Regularly occupied space")*('Cal _ Area Statement Circulatio'!D15:D30="Non air conditioned space"))/10.764 ->  | F14: 0
B15: =_xlfn._xlws.FILTER('Cal _ Area Statement Circulatio'!B16:B31,('Cal _ Area Statement Circulatio'!C16:C31="Regularly occupied space")*('Cal _ Area Statement Circulatio'!D16:D31="Non air conditioned space")) ->  | C15: =_xlfn._xlws.FILTER('Cal _ Area Statement Circulatio'!E16:E31,('Cal _ Area Statement Circulatio'!C16:C31="Regularly occupied space")*('Cal _ Area Statement Circulatio'!D16:D31="Non air conditioned space"))/10.764 ->  | F15: 0
B16: =_xlfn._xlws.FILTER('Cal _ Area Statement Circulatio'!B17:B32,('Cal _ Area Statement Circulatio'!C17:C32="Regularly occupied space")*('Cal _ Area Statement Circulatio'!D17:D32="Non air conditioned space")) ->  | C16: =_xlfn._xlws.FILTER('Cal _ Area Statement Circulatio'!E17:E32,('Cal _ Area Statement Circulatio'!C17:C32="Regularly occupied space")*('Cal _ Area Statement Circulatio'!D17:D32="Non air conditioned space"))/10.764 ->  | F16: 0
B19: Total regularly occupied area with natural ventilation (sq m) | G19: =SUM(C3:C6) -> 
B20: Minimum percentage of opening | G20: =MIN(G3:G6) -> 
B22: Efficient space conditioning - Non Air-conditioned spaces
B23: Meets 5% opening for more than 90% of naturally ventilated spaces for 1 Point" | G23: =IF(COUNTA(C2:C5)=0, "No Data", COUNTIFS(G2:G5, ">=5%")/COUNTA(C2:C5) >= 0.9) -> FALSE
B24: Meets 6% opening for more than 90% of naturally ventilated spaces for 2 Point" | G24: =IF(COUNTA(C3:C6)=0, "No Data", COUNTIFS(G3:G6, ">=6%")/COUNTA(C3:C6) >= 0.9) -> FALSE
B25: Meets 7% opening for more than 90% of naturally ventilated spaces for 3 Point" | G25: =IF(COUNTA(C3:C6)=0, "No Data", COUNTIFS(G3:G6, ">=7%")/COUNTA(C3:C6) >= 0.9) -> FALSE
B26: Meets 8% opening for more than 90% of naturally ventilated spaces for 4 Point" | G26: =IF(COUNTA(C3:C6)=0, "No Data", COUNTIFS(G3:G6, ">=8%")/COUNTA(C3:C6) >= 0.9) -> FALSE
B27: Meets 9% opening for more than 90% of naturally ventilated spaces for 5 Point" | G27: =IF(COUNTA(C3:C6)=0, "No Data", COUNTIFS(G3:G6, ">=9%")/COUNTA(C3:C6) >= 0.9) -> FALSE
B28: Meets 10% opening for more than 90% of naturally ventilated spaces for 6 Point" | G28: =IF(COUNTA(C3:C6)=0, "No Data", COUNTIFS(G3:G6, ">=10%")/COUNTA(C3:C6) >= 0.9) -> FALSE
B30: Fresh Air Natural Ventilation
B31: Meets the mandatory fresh-air requirement for all naturally ventilated spaces | G31: =AND(EXACT(H3:H6, "TRUE")) -> 
B32: Meets the Enhanced fresh-air requirement for all naturally ventilated spaces for 1 Point | G32: =AND(EXACT(I3:I6, "TRUE")) -> 
B33: Meets the Enhanced fresh-air requirement for all naturally ventilated spaces for 2 Point | G33: =AND(EXACT(J3:J6, "TRUE")) -> 
B35: CO2 Monitoring
B36: Meets the CO2 monitoring credit compliance for all naturally ventilated spaces for 1 Point | G36: =AND(EXACT(K3:K6, "TRUE")) -> 
B37: Meets the CO2 monitoring credit compliance for all naturally ventilated spaces for 2 Point | G37: =AND(EXACT(L3:L6, "TRUE")) -> 

Sheet LPD Space function method
A1: Description of spaces (e.g. core workstation, meeting room, electrical room, restroom etc) | B1: Type of Space | C1: Carpet Area (sq m) | D1: Lighting fixtures | G1: Total wattage | H1: Design LPD (W/sq m | I1: Baseline LPD (W/sq.m) | J1: LPD reduction (W/sq m) | K1: Baseline (total Consumption) | L1: Period Of Operations | N1: Annual Lighting Energy Consumption (kWh)
D2: Type (decorative, linear, CFL etc) | E2: No. of lighting fixture | F2: Wattage of each lighting fixture | L2: Hours | M2: Days
A3: ='Cal _ Area Statement Circulatio'!B4 -> Workstation Area | B3: Conference/Meeting | C3: ='Cal _ Area Statement Circulatio'!E4/10.764 -> 494.7974731 | D3: LED linear lights | E3: 4 | F3: 20 | G3: =E3*F3 -> 80 | H3: =G3/C3 -> 0.1616823132 | I3: =VLOOKUP(B3,$P$6:$Q$66,2,FALSE) -> 11.5 | J3: =(I3-H3)/I3 -> 0.9859406684 | K3: =I3*C3 -> 5690.17094 | L3: 12 | M3: 250 | N3: =G3*L3*M3/1000 -> 240 | P3: Setup Table
A4: ='Cal _ Area Statement Circulatio'!B5 -> Workstation Area-JS | B4: Conference/Meeting | C4: ='Cal _ Area Statement Circulatio'!E5/10.764 -> 45.52211074 | D4: LED troffer | E4: 4 | F4: 15 | G4: =E4*F4 -> 60 | H4: =G4/C4 -> 1.318040816 | I4: =VLOOKUP(B4,$P$4:$Q$66,2,FALSE) -> 11.5 | J4: =(I4-H4)/I4 -> 0.8853877551 | K4: 523.5042735 | L4: 12 | M4: 250 | N4: 180 | P4: LPD - Space function Method | T4: All the cells highlighted with yellow background are input fields (data to be entered by project team)
A5: ='Cal _ Area Statement Circulatio'!B6 -> Café Area | B5: Conference/Meeting | C5: ='Cal _ Area Statement Circulatio'!E6/10.764 -> 64.28836864 | D5: LED troffer | E5: 4 | F5: 5 | G5: 20 | H5: 0.3110982659 | I5: 11.5 | J5: 0.9729479769 | K5: 739.3162393 | L5: 12 | M5: 250 | N5: 60 | P5: Space Type | Q5: LPD (W/m²)
A6: ='Cal _ Area Statement Circulatio'!B7 -> Hand wash Area | B6: Bar Lounge/Registration | C6: ='Cal _ Area Statement Circulatio'!E7/10.764 -> 6.224451877 | D6: LED spot lights | E6: 2 | F6: 6 | G6: 12 | H6: 1.927880597 | I6: 14.1 | J6: 0.8632708796 | K6: 87.76477146 | L6: 12 | M6: 250 | N6: 36 | P6: Restroom | Q6: 7.7
A7: ='Cal _ Area Statement Circulatio'!B8 -> Dish wash Area | B7: Conference/Meeting | C7: ='Cal _ Area Statement Circulatio'!E8/10.764 -> 4.36640654 | D7: LED linear lights | E7: 8 | F7: 5 | G7: 40 | H7: 9.160851064 | I7: 11.5 | J7: 0.2034042553 | K7: 50.21367521 | L7: 12 | M7: 250 | N7: 120 | P7: Storage | Q7: 6.8
A8: ='Cal _ Area Statement Circulatio'!B9 -> Meetings Room Area | B8: Corridor/Transition | C8: ='Cal _ Area Statement Circulatio'!E9/10.764 -> 68.93348198 | D8: LED decorative fixtures | E8: 1 | F8: 2 | G8: 2 | H8: =G8/C8 -> 0.02901347709 | I8: 7.1 | J8: 0.9959135948 | K8: 489.427722 | L8: 12 | M8: 250 | N8: 6 | P8: Conference/Meeting | Q8: 11.5
A9: ='Cal _ Area Statement Circulatio'!B10 -> Cabins Area | B9: Storage | C9: ='Cal _ Area Statement Circulatio'!E10/10.764 -> 30.19323671 | D9: LED linear lights | E9: 2 | F9: 2 | G9: 4 | H9: =G9/C9 -> 0.13248 | I9: 6.8 | J9: 0.9805176471 | K9: =I9*C9 -> 205.3140097 | L9: 12 | M9: 250 | N9: =G9*L9*M9/1000 -> 12 | P9: Parking Bays (covered/ basement) | Q9: 2.2
A10: ='Cal _ Area Statement Circulatio'!B11 -> UPS Room Area | B10: Storage | C10: ='Cal _ Area Statement Circulatio'!E11/10.764 -> 8.825715347 | D10: LED linear lights | E10: 2 | F10: 2 | G10: =E10*F10 -> 4 | H10: =G10/C10 -> 0.4532210526 | I10: 6.8 | J10: =(I10-H10)/I10 -> 0.9333498452 | K10: =I10*C10 -> 60.01486436 | L10: 12 | M10: 250 | N10: =G10*L10*M10/1000 -> 12 | P10: Electrical/Mechanical | Q10: 7.1
A11: ='Cal _ Area Statement Circulatio'!B12 -> AHU Room Area | B11: Electrical/Mechanical | C11: ='Cal _ Area Statement Circulatio'!E12/10.764 -> 25.91973244 | D11: LED spot lights | E11: 2 | F11: 3 | G11: 6 | H11: 0.231483871 | I11: 7.1 | J11: 0.9673966379 | K11: 184.0301003 | L11: 12 | M11: 250 | N11: 18 | P11: Stairway | Q11: 5.5
A12: ='Cal _ Area Statement Circulatio'!B13 -> Reprographic/ Store Area | B12: Electrical/Mechanical | C12: ='Cal _ Area Statement Circulatio'!E13/10.764 -> 3.994797473 | D12: LED spot lights | E12: 2 | F12: 2 | G12: 4 | H12: 1.001302326 | I12: 7.1 | J12: 0.8589715034 | K12: 28.36306206 | L12: 12 | M12: 250 | N12: 12 | P12: Corridor/Transition | Q12: 7.1
A13: ='Cal _ Area Statement Circulatio'!B14 -> Reception Area | B13: Restroom | C13: ='Cal _ Area Statement Circulatio'!E14/10.764 -> 29.63582311 | D13: LED spot lights | E13: 3 | F13: 2 | G13: 6 | H13: 0.2024576803 | I13: 7.7 | J13: 0.9737067948 | K13: 228.195838 | L13: 12 | M13: 250 | N13: 18 | P13: Lobby | Q13: 9.1
A14: ='Cal _ Area Statement Circulatio'!B15 -> Phone Booths Area | B14: Restroom | C14: ='Cal _ Area Statement Circulatio'!E15/10.764 -> 24.15458937 | D14: LED spot lights | E14: 4 | F14: 2 | G14: 8 | H14: 0.3312 | I14: 7.7 | J14: 0.956987013 | K14: 185.9903382 | L14: 12 | M14: 250 | N14: 24 | P14: Parking Driveways (covered/ basement) | Q14: 3
A15: ='Cal _ Area Statement Circulatio'!B19 -> 0 | B15: Corridor/Transition | C15: ='Cal _ Area Statement Circulatio'!E19/10.764 -> 0 | D15: LED troffer | E15: 2 | F15: 2 | G15: 4 | I15: 7.1 | K15: 0 | L15: 12 | M15: 250 | N15: 12 | P15: Workshop | Q15: 17.1
G16: 0
G17: 0
G18: 0
G19: 0
G20: 0
G21: 0
G22: 0
G23: 0
G24: 0
G25: 0
P26: Business (Open Plan) | Q26: 10
A27: Total carpet area (sq m) | J27: =SUM(C3:C25) -> 806.8561873 | P27: Service/Repair | Q27: 6.8
A28: Percentage of LPD reduction | J28: =MIN(J3:J25) ->  | K28: Display the minimum percentage achieved The percentage (column J) of all the individual spaces listed above should meet the baseline percentage for each point as indicated in point distribution sheet V1 & V2 | P28: Emergency Treatment | Q28: 13.7
P29: Nurse Station | Q29: 9.4
P30: Patient Room | Q30: 7.7
P31: Pharmacy | Q31: 10.7
P32: Radiology/Imaging | Q32: 9.1
P33: Emergency | Q33: 22.8
P34: Recovery | Q34: 8.6
P35: Laundry/Washing | Q35: 7.5
P36: Medical Supply | Q36: 13.7
P37: Corridor/Transition | Q37: 9.1
P38: Hotel Dining | Q38: 9.1
P39: Bar Lounge/Registration | Q39: 14.1
P40: Hotel Guest Rooms | Q40: 9.1
P41: Hotel Lobby | Q41: 10.9
P42: Model Dining | Q42: 9.1
P43: Motel Guest Rooms | Q43: 7.7
P44: Mall Concourse | Q44: 12.8
P45: Sales Area | Q45: 18.3
P46: Motion Picture Theatre | Q46: 9.6
P47: For Family Dining | Q47: 10.9
P48: Bar Food Preparation | Q48: 12.1
P49: Bar Lounge/Dining | Q49: 14.1
P50: Classroom/Lecture | Q50: 13.7
P51: For classrooms | Q51: 13.8
P52: Laboratory | Q52: 15.1
P53: Card File & Cataloguing | Q53: 9.1
P54: Stacks (Lib) | Q54: 18.3
P55: Reading Area (Library) | Q55: 10
P56: Dressing Room | Q56: 9.1
P57: Exhibit Space – Convention centre | Q57: 14
P58: Seating Area - Gymnasium | Q58: 14
P59: Fitness Area - Gymnasium | Q59: 13.7
P60: Museum - General Exhibition | Q60: 16.4
P61: Museum - Restoration | Q61: 18.3
P62: Seating Area – Performing Arts Theatre | Q62: 22.6
P63: Lobby - Performing Arts | Q63: 21.5
P64: Seating Area – Convention area | Q64: 6.4
P65: Seating Religious Building | Q65: 16.4
P66: Playing Area - Gymnasium | Q66: 18.3

Sheet LPD Building area method
A1: Description of spaces (e.g. core workstation, meeting room, electrical room, restroom etc) | B1: Carpet Area (sq m) Formula to convert sq ft to sq m Square feet / 10.764 | C1: Lighting fixtures | F1: Total wattage | I1: Lighting
C2: Type (decorative, linear, CFL etc) | D2: No. of lighting fixture | E2: Wattage of each lighting fixture | I2: Building Area Method
A3: ='Cal _ Area Statement Circulatio'!B4 -> Workstation Area | B3: ='Cal _ Area Statement Circulatio'!E4/10.764 -> 494.7974731 | C3: ='LPD Space function method'!D3 -> LED linear lights | D3: 4 | E3: 20 | F3: =D3*E3 -> 80 | I3: Typology | J3: Baseline LPD | N3: All the cells highlighted with yellow background are input fields (data to be entered by project team)
A4: ='Cal _ Area Statement Circulatio'!B5 -> Workstation Area-JS | B4: ='Cal _ Area Statement Circulatio'!E5/10.764 -> 45.52211074 | C4: ='LPD Space function method'!D4 -> LED troffer | D4: 4 | E4: 15 | F4: =D4*E4 -> 60 | I4: Office Building | J4: 9.5
A5: ='Cal _ Area Statement Circulatio'!B6 -> Café Area | B5: ='Cal _ Area Statement Circulatio'!E6/10.764 -> 64.28836864 | C5: ='LPD Space function method'!D5 -> LED troffer | D5: 4 | E5: 12 | F5: 48 | I5: Hospitals | J5: 9.7
A6: ='Cal _ Area Statement Circulatio'!B7 -> Hand wash Area | B6: ='Cal _ Area Statement Circulatio'!E7/10.764 -> 6.224451877 | C6: ='LPD Space function method'!D6 -> LED spot lights | D6: 2 | E6: 6 | F6: 12 | I6: Hotels | J6: 9.5
A7: ='Cal _ Area Statement Circulatio'!B8 -> Dish wash Area | B7: ='Cal _ Area Statement Circulatio'!E8/10.764 -> 4.36640654 | C7: ='LPD Space function method'!D7 -> LED linear lights | D7: 8 | E7: 15 | F7: 120 | I7: Shopping Mall | J7: 14.1
A8: ='Cal _ Area Statement Circulatio'!B9 -> Meetings Room Area | B8: ='Cal _ Area Statement Circulatio'!E9/10.764 -> 68.93348198 | C8: ='LPD Space function method'!D8 -> LED decorative fixtures | D8: 1 | E8: 30 | F8: 30 | I8: University and Schools | J8: 11.2
A9: ='Cal _ Area Statement Circulatio'!B10 -> Cabins Area | B9: ='Cal _ Area Statement Circulatio'!E10/10.764 -> 30.19323671 | C9: ='LPD Space function method'!D9 -> LED linear lights | D9: 2 | E9: 30 | F9: 60 | I9: Library | J9: 12.2
A10: ='Cal _ Area Statement Circulatio'!B11 -> UPS Room Area | B10: ='Cal _ Area Statement Circulatio'!E11/10.764 -> 8.825715347 | C10: ='LPD Space function method'!D10 -> LED linear lights | D10: 2 | E10: 31 | F10: 62 | I10: Dining: bar lounge/ leisure | J10: 12.2
A11: ='Cal _ Area Statement Circulatio'!B12 -> AHU Room Area | B11: ='Cal _ Area Statement Circulatio'!E12/10.764 -> 25.91973244 | C11: ='LPD Space function method'!D11 -> LED spot lights | D11: 2 | E11: 45 | F11: 90 | I11: Dining: cafeteria/ fast food | J11: 11.5
A12: ='Cal _ Area Statement Circulatio'!B13 -> Reprographic/ Store Area | B12: ='Cal _ Area Statement Circulatio'!E13/10.764 -> 3.994797473 | C12: ='LPD Space function method'!D12 -> LED spot lights | D12: 2 | E12: 25 | F12: 50 | I12: Dining: family | J12: 10.9
A13: ='Cal _ Area Statement Circulatio'!B14 -> Reception Area | B13: ='Cal _ Area Statement Circulatio'!E14/10.764 -> 29.63582311 | C13: ='LPD Space function method'!D13 -> LED spot lights | D13: 3 | E13: 6 | F13: 18 | I13: Dormitory | J13: 9.1
A14: ='Cal _ Area Statement Circulatio'!B15 -> Phone Booths Area | B14: ='Cal _ Area Statement Circulatio'!E15/10.764 -> 24.15458937 | C14: ='LPD Space function method'!D14 -> LED spot lights | D14: 4 | E14: 6 | F14: 24 | I14: Fire station | J14: 9.7
A15: ='Cal _ Area Statement Circulatio'!B19 -> 0 | B15: ='Cal _ Area Statement Circulatio'!E19/10.764 -> 0 | C15: ='LPD Space function method'!D15 -> LED troffer | D15: 2 | E15: 15 | F15: 30 | I15: Gymnasium | J15: 10
F16: 0
F17: 0
F18: 0
F19: 0
F20: 0
F21: 0
F22: 0
F23: 0
F24: 0
F25: 0
I26: Manufacturing facility | J26: 12
A27: Total carpet area ( sq m) | F27: =SUM(B3:B15) -> 806.8561873 | I27: Motion picture theatre | J27: 9.43
A28: Total wattage ( W) | F28: =SUM(F3:F15) -> 684 | I28: Museum | J28: 10.2
A29: Design LPD (W/sq m) | F29: =F28/F27 -> 0.847734715 | I29: Post office | J29: 10.5
A30: Baseline LPD (W/sq m) | D30: Office Building | F30: =VLOOKUP(D30,I4:J38,2,FALSE) -> 9.5 | I30: Religious building | J30: 12
A31: Percentage of LPD reduction | F31: =(F30-F29)/F30 -> 0.9107647668 | I31: Sports arena | J31: 9.7
I32: Transportation | J32: 9.2
A33: Period Of Operations | D33: Hours | F33: 12 | I33: Warehouse | J33: 7.08
D34: Days | F34: 250 | I34: Performing arts theatre | J34: 16.3
A35: Annual Lighting Energy Consumption (kWh) | F35: =F28*F33*F34 -> 2052000 | I35: Police station | J35: 9.9
I36: Workshop | J36: 14.1
I37: Automotive facility | J37: 9
I38: Parking Garage | J38: 3

Sheet On-Site Renewable Energy
B2: S. No. | C2: Month | D2: Energy Consumption (as per bills) in kWh | E2: On-Site Renewable Energy Generation ( kWh) | F2: Off-Site Renewable Energy Procured ( kWh)
B3: 1 | C3: 2024-01-01 | D3: 1000 | E3: 900 | F3: 100
B4: 2 | C4: 2024-02-01 | D4: 1395 | E4: 1168 | F4: 1168
B5: 3 | C5: 2024-03-01 | D5: 1400 | E5: 1450 | F5: 0
B6: 4 | C6: 2024-04-01 | D6: 2535 | E6: 1465 | F6: 1243
B7: 5 | C7: 2024-05-01 | D7: 2800 | E7: 1500 | F7: 600
B8: 6 | C8: 2024-06-01 | D8: 2534 | E8: 1465 | F8: 700
B9: 7 | C9: 2024-07-01 | D9: 2205 | E9: 590 | F9: 590
B10: 8 | C10: 2024-08-01 | D10: 2700 | E10: 915 | F10: 915
B11: 9 | C11: 2024-09-01 | D11: 2600 | E11: 850 | F11: 800
B12: 10 | C12: 2024-10-01 | D12: 2610 | E12: 124 | F12: 124
B13: 11 | C13: 2024-11-01 | D13: 1395 | E13: 875 | F13: 214
B14: 12 | C14: 2024-12-01 | D14: 2670 | E14: 900 | F14: 300
B15: Total | D15: =SUM(D3:D14) -> 25844 | E15: =SUM(E3:E14) -> 12202 | F15: =SUM(F3:F14) -> 6754
B18: Percentage of energy consumption met through on-site renewable energy | F18: =E15/D15 -> 0.4721405355
B19: Percentage of energy consumption met through off-site renewable energy | F19: =F15/D15 -> 0.2613372543

Sheet Ver 1_Master Material Sheet
A1: S.No | B1: Category Give below options as drop down option | C1: Sub - Category Give below options as drop down specific to the material selected in Category column | D1: Material Quantity | E1: Unit | F1: Rates | G1: Total material Cost | H1: Manufacturer Details | I1: Manufacturing Unit Location | J1: Distance from Manufacturing Unit Location to project site (km) | K1: Cost of Local Materials Procured | L1: Salvaged Material (Y/N) | M1: Salvaged Material Cost | N1: Eco-Labelled Material (Y/N) | O1: Recycled Content (%) | P1: Recycled Material Cost | Q1: Rapidly Renewable wood (%) | R1: Composite wood (%) | S1: Eco-friendly/ Rapidly Renewable Wood Cost | T1: Eco-Certified furniture (Y/N) | U1: Eco -Certified furniture cost
A2: 1 | B2: Wall | C2: AAC | G2: =D2*F2 -> 0 | K2: =G2 -> 0 | P2: =O2*G2 -> 0 | S2: =(Q2*G2)+(R2*G2) -> 0 | U2: =IF(T2="Y",G2,0) -> 0 | Y2: Wall | Z2: AAC
C3: Flyash | G3: 0 | K3: 0 | P3: 0 | S3: 0 | U3: =IF(T3="Y",G3,0) -> 0 | Z3: Flyash
C4: Red brick | G4: 0 | K4: 0 | P4: 0 | S4: 0 | U4: 0 | Z4: Red brick
C5: Other | G5: 0 | K5: 0 | P5: 0 | S5: 0 | U5: 0 | Z5: Other
A6: 2 | B6: Cement | C6: Cement | G6: 0 | K6: 0 | P6: 0 | S6: 0 | U6: 0 | Y6: Cement | Z6: Cement
C7: Other | G7: 0 | K7: 0 | P7: 0 | S7: 0 | U7: 0 | Z7: Other
A8: 3 | B8: Wood | C8: Plywood | D8: 100 | F8: 150 | G8: =D8*F8 -> 15000 | I8: Noida | J8: 300 | K8: =G8 -> 15000 | L8: N | M8: 0 | N8: Y | O8: 0.2 | P8: =O8*G8 -> 3000 | Q8: 0.1 | R8: 0.3 | S8: =(Q8*G8)+(R8*G8) -> 6000 | U8: 0 | Y8: Wood | Z8: Plywood
C9: MDF | D9: 400 | F9: 1000 | G9: =D9*F9 -> 400000 | J9: 900 | K9: =G9 -> 400000 | L9: N | M9: 0 | N9: N | P9: =O9*G9 -> 0 | Q9: 0 | R9: 1 | S9: 400000 | U9: 0 | Z9: MDF
C10: Laminate | G10: 0 | K10: 0 | P10: 0 | S10: 0 | U10: 0 | Z10: Laminate
C11: Other | G11: 0 | K11: 0 | P11: 0 | S11: 0 | U11: 0 | Z11: Other
A12: 4 | B12: Flooring | C12: Vitrified Tile | D12: 101 | F12: 65 | G12: 6565 | J12: 56 | K12: =G12 -> 6565 | L12: N | M12: 0 | N12: N | P12: 0 | S12: 0 | U12: 0 | Y12: Flooring | Z12: Vitrified Tile
C13: Granite | G13: 0 | K13: =G13 -> 0 | P13: 0 | S13: 0 | U13: 0 | Z13: Granite
C14: Carpet | G14: 0 | K14: 0 | P14: 0 | S14: 0 | U14: 0 | Z14: Carpet
C15: RCC | G15: 0 | K15: 0 | P15: 0 | S15: 0 | U15: 0 | Z15: RCC
C16: Raised flooring modular | G16: 0 | K16: 0 | P16: 0 | S16: 0 | U16: 0 | Z16: Raised flooring modular
C17: Laminate | G17: 0 | K17: 0 | P17: 0 | S17: 0 | U17: 0 | Z17: Laminate
C18: Tile | G18: 0 | K18: 0 | P18: 0 | S18: 0 | U18: 0 | Z18: Tile
C19: Dado | G19: 0 | K19: 0 | P19: 0 | S19: 0 | U19: 0 | Z19: Dado
C20: Wooden | G20: 0 | K20: 0 | P20: 0 | S20: 0 | U20: 0 | Z20: Wooden
C21: VDF | G21: 0 | K21: 0 | P21: 0 | S21: 0 | U21: 0 | Z21: VDF
C22: Other | G22: 0 | K22: 0 | P22: 0 | S22: 0 | U22: 0 | Z22: Other
A23: 5 | B23: Paint | C23: Emulsion | D23: 50 | F23: 400 | G23: 20000 | J23: 467 | K23: =G23 -> 20000 | L23: N | M23: 0 | N23: Y | P23: 0 | S23: 0 | U23: 0 | Y23: Paint | Z23: Emulsion
C24: Primer | D24: 30 | F24: 400 | G24: 12000 | K24: 12000 | P24: 0 | S24: 0 | U24: 0 | Z24: Primer
C25: Enamel | G25: 0 | K25: 0 | P25: 0 | S25: 0 | U25: 0 | Z25: Enamel
C26: Texture | G26: 0 | K26: 0 | P26: 0 | S26: 0 | U26: 0 | Z26: Texture
C27: Putty | G27: 0 | K27: 0 | P27: 0 | S27: 0 | U27: 0 | Z27: Putty
C28: Other | G28: 0 | K28: 0 | P28: 0 | S28: 0 | U28: 0 | Z28: Other
A29: 6 | B29: Furniture | C29: Workstation | D29: 20 | F29: 5000 | G29: 100000 | K29: 100000 | P29: 0 | S29: 0 | T29: Y | U29: 100000 | Y29: Furniture | Z29: Workstation
C30: Chair | D30: 20 | F30: 2000 | G30: 40000 | K30: 40000 | P30: 0 | S30: 0 | T30: N | U30: 0 | Z30: Chair
C31: Storage unit | D31: 20 | F31: 1500 | G31: 30000 | K31: 30000 | P31: 0 | S31: 0 | U31: 0 | Z31: Storage unit
C32: Meeting room table | G32: 0 | K32: 0 | P32: 0 | S32: 0 | U32: 0 | Z32: Meeting room table
C33: Cabin table | G33: 0 | K33: 0 | P33: 0 | S33: 0 | U33: 0 | Z33: Cabin table
C34: Loose furniture | G34: 0 | K34: 0 | P34: 0 | S34: 0 | U34: 0 | Z34: Loose furniture
C35: Sofa | G35: 0 | K35: 0 | P35: 0 | S35: 0 | U35: 0 | Z35: Sofa
C36: Other | G36: 0 | K36: 0 | P36: 0 | S36: 0 | U36: 0 | Z36: Other
A37: 7 | B37: Partition | C37: Glass | G37: 0 | K37: 0 | P37: 0 | S37: 0 | U37: 0 | Y37: Partition | Z37: Glass
C38: Wood | G38: 0 | K38: 0 | P38: 0 | S38: 0 | U38: 0 | Z38: Wood
C39: Aluminium | G39: 0 | K39: 0 | P39: 0 | S39: 0 | U39: 0 | Z39: Aluminium
C40: Gypsum with insulation | G40: 0 | K40: 0 | P40: 0 | S40: 0 | U40: 0 | Z40: Gypsum with insulation
C41: Sliding & folding | G41: 0 | K41: 0 | P41: 0 | S41: 0 | U41: 0 | Z41: Sliding & folding
C42: Other | G42: 0 | K42: 0 | P42: 0 | S42: 0 | U42: 0 | Z42: Other
A43: 8 | B43: Door | C43: Wooded door | G43: 0 | K43: 0 | P43: 0 | S43: 0 | U43: 0 | Y43: Door | Z43: Wooded door
C44: Glass door | G44: 0 | K44: 0 | P44: 0 | S44: 0 | U44: 0 | Z44: Glass door
C45: Other | G45: 0 | K45: 0 | P45: 0 | S45: 0 | U45: 0 | Z45: Other
A46: 9 | B46: Wall panelling | C46: Plywood | G46: 0 | K46: 0 | P46: 0 | S46: 0 | U46: 0 | Y46: Wall panelling | Z46: Plywood
C47: Acoustic panel | G47: 0 | K47: 0 | P47: 0 | S47: 0 | U47: 0 | Z47: Acoustic panel
C48: Other | G48: 0 | K48: 0 | P48: 0 | S48: 0 | U48: 0 | Z48: Other
A49: 10 | B49: Ceiling | C49: Grid false ceiling | G49: 0 | K49: 0 | P49: 0 | S49: 0 | U49: 0 | Y49: Ceiling | Z49: Grid false ceiling
C50: Gypsum false ceiling | G50: 0 | K50: 0 | P50: 0 | S50: 0 | U50: 0 | Z50: Gypsum false ceiling
C51: Baffle ceiling | G51: 0 | K51: 0 | P51: 0 | S51: 0 | U51: 0 | Z51: Baffle ceiling
C52: Other | G52: 0 | K52: 0 | P52: 0 | S52: 0 | U52: 0 | Z52: Other
A53: 11 | B53: Soft Furnishing | C53: Blinds for openings | G53: 0 | K53: 0 | P53: 0 | S53: 0 | U53: 0 | Y53: Soft Furnishing | Z53: Blinds for openings
C54: Signage | G54: 0 | K54: 0 | P54: 0 | S54: 0 | U54: 0 | Z54: Signage
C55: Writing board | G55: 0 | K55: 0 | P55: 0 | S55: 0 | U55: 0 | Z55: Writing board
C56: Hardware for furniture | G56: 0 | K56: 0 | P56: 0 | S56: =(Q56*G56)+(R56*G56) -> 0 | U56: 0 | Z56: Hardware for furniture
C57: Other | G57: 0 | K57: 0 | P57: 0 | S57: 0 | U57: 0 | Z57: Other
A58: 12 | B58: Plumbing fixtures | C58: Water closet | G58: 0 | K58: 0 | P58: 0 | S58: 0 | U58: 0 | Y58: Plumbing fixtures | Z58: Water closet
C59: Health faucet | G59: 0 | K59: 0 | P59: 0 | S59: 0 | U59: 0 | Z59: Health faucet
C60: Urinal | G60: 0 | K60: 0 | P60: 0 | S60: 0 | U60: 0 | Z60: Urinal
C61: Faucet/Tap | G61: 0 | K61: 0 | P61: 0 | S61: 0 | U61: 0 | Z61: Faucet/Tap
C62: Kitchen / Pantry faucet | G62: 0 | K62: 0 | P62: 0 | S62: 0 | U62: 0 | Z62: Kitchen / Pantry faucet
C63: Showerhead | G63: 0 | K63: 0 | P63: 0 | S63: 0 | U63: 0 | Z63: Showerhead
C64: Handheld shower spray | G64: 0 | K64: 0 | P64: 0 | S64: 0 | U64: 0 | Z64: Handheld shower spray
C65: Others | G65: 0 | K65: 0 | P65: 0 | S65: 0 | U65: 0 | Z65: Others
A66: 13 | B66: Indoor plants | C66: Snake plant | G66: =D66*F66 -> 0 | K66: 0 | P66: 0 | S66: =(Q66*G66)+(R66*G66) -> 0 | U66: 0 | Y66: Indoor plants | Z66: Snake plant
C67: Peace lily | G67: 0 | K67: 0 | P67: 0 | S67: 0 | U67: =IF(T67="Y",G67,0) -> 0 | Z67: Peace lily
C68: ZZ plant | G68: 0 | K68: 0 | P68: 0 | S68: 0 | U68: 0 | Z68: ZZ plant
C69: Other | G69: 0 | K69: 0 | P69: 0 | S69: 0 | U69: 0 | Z69: Other
A70: 14 | B70: Air conditioning | C70: Air conditioning high side | G70: 0 | K70: 0 | P70: 0 | S70: 0 | U70: 0 | Y70: Air conditioning | Z70: Air conditioning high side
C71: Air conditioning low side | G71: 0 | K71: 0 | P71: 0 | S71: 0 | U71: 0 | Z71: Air conditioning low side
A72: 15 | B72: Electrical | C72: Wires | G72: 0 | K72: 0 | P72: 0 | S72: 0 | U72: 0 | Y72: Electrical | Z72: Wires
C73: Cables | G73: 0 | K73: 0 | P73: =O73*G73 -> 0 | S73: 0 | U73: 0 | Z73: Cables
C74: MS/ GI pipes / Conduits - Fire hydrant system | G74: 0 | K74: 0 | P74: 0 | S74: 0 | U74: 0 | Z74: MS/ GI pipes / Conduits - Fire hydrant system
C75: Raceways | G75: 0 | K75: 0 | P75: 0 | S75: 0 | U75: 0 | Z75: Raceways
C76: Lighting - Square light (12W) | G76: 0 | K76: 0 | P76: 0 | S76: 0 | U76: 0 | Z76: Lighting - Square light (12W)
C77: Lighting - Square light (22W) | G77: 0 | K77: =G77 -> 0 | P77: 0 | S77: 0 | U77: 0 | Z77: Lighting - Square light (22W)
C78: Lighting - Decorative light (22W) | G78: 0 | K78: 0 | P78: 0 | S78: 0 | U78: 0 | Z78: Lighting - Decorative light (22W)
C79: Lighting - Recessed light (6W) | G79: 0 | K79: 0 | P79: 0 | S79: 0 | U79: 0 | Z79: Lighting - Recessed light (6W)
C80: Sensors | G80: 0 | K80: 0 | P80: 0 | S80: =(Q80*G80)+(R80*G80) -> 0 | U80: 0 | Z80: Sensors
C81: Switch boards | G81: 0 | K81: 0 | P81: 0 | S81: 0 | U81: 0 | Z81: Switch boards
C82: Switches/ controls | G82: 0 | K82: 0 | P82: 0 | S82: 0 | U82: 0 | Z82: Switches/ controls
C83: Electrical Panels | G83: 0 | K83: 0 | P83: 0 | S83: 0 | U83: 0 | Z83: Electrical Panels
C84: Switch gear | G84: 0 | K84: 0 | P84: 0 | S84: 0 | U84: 0 | Z84: Switch gear
C85: Energy sub-meter | G85: 0 | K85: =G85 -> 0 | P85: 0 | S85: 0 | U85: 0 | Z85: Energy sub-meter
C86: Appliances - Refrigerator | G86: 0 | K86: 0 | P86: 0 | S86: 0 | U86: 0 | Z86: Appliances - Refrigerator
C87: Appliances - Printer | G87: 0 | K87: 0 | P87: 0 | S87: 0 | U87: 0 | Z87: Appliances - Printer
C88: Appliances - UPS | G88: 0 | K88: 0 | P88: 0 | S88: 0 | U88: 0 | Z88: Appliances - UPS
C89: Other | G89: 0 | K89: 0 | P89: 0 | S89: 0 | U89: 0 | Z89: Other
B90: Others (not included in the above list) | D90: =SUM(D2:D89) -> 741 | G90: =SUM(G2:G89) -> 623565 | K90: 623565 | M90: =SUM(M2:M89) -> 0 | N90: =COUNTIF(N2:N89,"Y") -> 2 | O90: =SUM(O2:O89) -> 0.2 | P90: =SUM(P2:P89) -> 3000 | Q90: =SUM(Q2:Q89) -> 0.1 | R90: =SUM(R2:R89) -> 1.3 | S90: =SUM(S2:S89) -> 406000 | U90: =SUM(U2:U89) -> 100000
B92: Total material Procured | E92: =G90 -> 623565
B93: Percentage of local materials procured | E93: =(K90/G90)*100 -> 100
B94: Percentage of recycled content materials procured | E94: =(P90/G90)*100 -> 0.4811046162
B95: Number of type I eco-labelled products procured | E95: =N90 -> 2
B96: Percentage of salvaged materials procured | E96: =(M90/G90)*100 -> 0
B97: Percentage of total cost of eco-friendly wood based material procured | E97: =(S90/G90)*100 -> 65.10949139
B98: Percentage of eco-certified interior furniture procured | E98: =(U90/G90)*100 -> 16.03682054
B102: 1. Based on the percentage savings, points achieved by the project team to be automatically reflected in checklist and respective credit page. Refer to the point distribution sheet V1 2. Provide multiple addition of rows for other option within each category

Sheet Ver 2_Master Material Sheet
A1: S.No | B1: Category Give below options as drop down option | C1: Sub - Category Give below options as drop down specific to the material selected in Category column | D1: Material Quantity | E1: Unit | F1: Rates | G1: Total material Cost | H1: Manufacturer Details | I1: Manufacturing Unit Location | J1: Distance from Manufacturing Unit Location to project site (km) | K1: Cost of Local Materials Procured | L1: Salvaged Material (Y/N) | M1: Salvaged Material Cost | N1: Reuse Material (%) | O1: Reuse Material Cost | P1: Eco-Labelled Material (Y/N) | Q1: Eco-Labelled Material Cost | R1: Recycled Content (%) | S1: Recycled Material Cost | T1: Rapidly Renewable wood (%) | U1: Composite wood (%) | V1: Eco-friendly/ Rapidly Renewable Wood Cost | W1: Eco-Certified interior furniture (Y/N) | X1: Eco -Certified interior furniture cost
A2: 1 | B2: Wall | C2: AAC | G2: =D2*F2 -> 0 | K2: =G2 -> 0 | O2: =N2*G2 -> 0 | S2: =R2*G2 -> 0 | V2: =(T2*G2)+(U2*G2) -> 0 | X2: =IF(W2="Y",G2,0) -> 0 | Y2: Wall | Z2: AAC
C3: Flyash | G3: 0 | K3: 0 | O3: =N3*G3 -> 0 | S3: =R3*G3 -> 0 | V3: =(T3*G3)+(U3*G3) -> 0 | X3: =IF(W3="Y",G3,0) -> 0 | Z3: Flyash
C4: Red brick | G4: 0 | K4: 0 | O4: 0 | S4: 0 | V4: 0 | X4: 0 | Z4: Red brick
C5: Other | G5: 0 | K5: 0 | O5: 0 | S5: 0 | V5: 0 | X5: 0 | Z5: Other
A6: 2 | B6: Cement | C6: Cement | G6: 0 | K6: 0 | O6: 0 | S6: 0 | V6: 0 | X6: 0 | Y6: Cement | Z6: Cement
C7: Other | G7: 0 | K7: 0 | O7: 0 | S7: 0 | V7: 0 | X7: 0 | Z7: Other
A8: 3 | B8: Wood | C8: Plywood | G8: 0 | K8: 0 | O8: 0 | S8: 0 | V8: 0 | X8: 0 | Y8: Wood | Z8: Plywood
C9: MDF | G9: 0 | K9: 0 | O9: 0 | S9: 0 | V9: 0 | X9: 0 | Z9: MDF
C10: Laminate | G10: 0 | K10: 0 | O10: 0 | S10: 0 | V10: 0 | X10: 0 | Z10: Laminate
C11: Other | G11: 0 | K11: 0 | O11: 0 | S11: 0 | V11: 0 | X11: 0 | Z11: Other
A12: 4 | B12: Flooring | C12: Vitrified Tile | G12: 0 | K12: 0 | O12: 0 | S12: 0 | V12: 0 | X12: 0 | Y12: Flooring | Z12: Vitrified Tile
C13: Granite | G13: 0 | K13: 0 | O13: 0 | S13: 0 | V13: 0 | X13: 0 | Z13: Granite
C14: Carpet | G14: 0 | K14: 0 | O14: 0 | S14: 0 | V14: 0 | X14: 0 | Z14: Carpet
C15: RCC | G15: 0 | K15: 0 | O15: 0 | S15: 0 | V15: 0 | X15: 0 | Z15: RCC
C16: Raised flooring modular | G16: 0 | K16: 0 | O16: 0 | S16: 0 | V16: 0 | X16: 0 | Z16: Raised flooring modular
C17: Laminate | G17: 0 | K17: 0 | O17: 0 | S17: 0 | V17: 0 | X17: 0 | Z17: Laminate
C18: Tile | G18: 0 | K18: 0 | O18: 0 | S18: 0 | V18: 0 | X18: 0 | Z18: Tile
C19: Dado | G19: 0 | K19: 0 | O19: 0 | S19: 0 | V19: 0 | X19: 0 | Z19: Dado
C20: Wooden | G20: 0 | K20: 0 | O20: 0 | S20: 0 | V20: 0 | X20: 0 | Z20: Wooden
C21: VDF | G21: 0 | K21: 0 | O21: 0 | S21: 0 | V21: 0 | X21: 0 | Z21: VDF
C22: Other | G22: 0 | K22: 0 | O22: 0 | S22: 0 | V22: 0 | X22: 0 | Z22: Other
A23: 5 | B23: Paint | C23: Emulsion | G23: 0 | K23: 0 | O23: 0 | S23: 0 | V23: 0 | X23: 0 | Y23: Paint | Z23: Emulsion
C24: Primer | G24: 0 | K24: 0 | O24: 0 | S24: 0 | V24: 0 | X24: 0 | Z24: Primer
C25: Enamel | G25: 0 | K25: 0 | O25: 0 | S25: 0 | V25: 0 | X25: 0 | Z25: Enamel
C26: Texture | G26: 0 | K26: 0 | O26: 0 | S26: 0 | V26: 0 | X26: 0 | Z26: Texture
C27: Putty | G27: 0 | K27: 0 | O27: 0 | S27: 0 | V27: 0 | X27: 0 | Z27: Putty
C28: Other | G28: 0 | K28: 0 | O28: 0 | S28: 0 | V28: 0 | X28: 0 | Z28: Other
A29: 6 | B29: Furniture | C29: Workstation | G29: 0 | K29: 0 | O29: 0 | S29: 0 | V29: 0 | X29: 0 | Y29: Furniture | Z29: Workstation
C30: Chair | G30: 0 | K30: 0 | O30: 0 | S30: 0 | V30: 0 | X30: 0 | Z30: Chair
C31: Storage unit | G31: 0 | K31: 0 | O31: 0 | S31: 0 | V31: 0 | X31: 0 | Z31: Storage unit
C32: Meeting room table | G32: 0 | K32: 0 | O32: 0 | S32: 0 | V32: 0 | X32: 0 | Z32: Meeting room table
C33: Cabin table | G33: 0 | K33: 0 | O33: 0 | S33: 0 | V33: 0 | X33: 0 | Z33: Cabin table
C34: Loose furniture | G34: 0 | K34: 0 | O34: 0 | S34: 0 | V34: 0 | X34: 0 | Z34: Loose furniture
C35: Sofa | G35: 0 | K35: 0 | O35: 0 | S35: 0 | V35: 0 | X35: 0 | Z35: Sofa
C36: Other | G36: 0 | K36: 0 | O36: 0 | S36: 0 | V36: 0 | X36: 0 | Z36: Other
A37: 7 | B37: Partition | C37: Glass | G37: 0 | K37: 0 | O37: 0 | S37: 0 | V37: 0 | X37: 0 | Y37: Partition | Z37: Glass
C38: Wood | G38: 0 | K38: 0 | O38: 0 | S38: 0 | V38: 0 | X38: 0 | Z38: Wood
C39: Aluminium | G39: 0 | K39: 0 | O39: 0 | S39: 0 | V39: 0 | X39: 0 | Z39: Aluminium
C40: Gypsum with insulation | G40: 0 | K40: 0 | O40: 0 | S40: 0 | V40: 0 | X40: 0 | Z40: Gypsum with insulation
C41: Sliding & folding | G41: 0 | K41: 0 | O41: 0 | S41: 0 | V41: 0 | X41: 0 | Z41: Sliding & folding
C42: Other | G42: 0 | K42: 0 | O42: 0 | S42: 0 | V42: 0 | X42: 0 | Z42: Other
A43: 8 | B43: Door | C43: Wooded door | G43: 0 | K43: 0 | O43: 0 | S43: 0 | V43: 0 | X43: 0 | Y43: Door | Z43: Wooded door
C44: Glass door | G44: 0 | K44: 0 | O44: 0 | S44: 0 | V44: 0 | X44: 0 | Z44: Glass door
C45: Other | G45: 0 | K45: 0 | O45: 0 | S45: 0 | V45: 0 | X45: 0 | Z45: Other
A46: 9 | B46: Wall panelling | C46: Plywood | G46: 0 | K46: 0 | O46: 0 | S46: 0 | V46: 0 | X46: 0 | Y46: Wall panelling | Z46: Plywood
C47: Acoustic panel | G47: 0 | K47: 0 | O47: 0 | S47: 0 | V47: 0 | X47: 0 | Z47: Acoustic panel
C48: Other | G48: 0 | K48: 0 | O48: 0 | S48: 0 | V48: 0 | X48: 0 | Z48: Other
A49: 10 | B49: Ceiling | C49: Grid false ceiling | G49: 0 | K49: 0 | O49: 0 | S49: 0 | V49: 0 | X49: 0 | Y49: Ceiling | Z49: Grid false ceiling
C50: Gypsum false ceiling | G50: 0 | K50: 0 | O50: 0 | S50: 0 | V50: 0 | X50: 0 | Z50: Gypsum false ceiling
C51: Baffle ceiling | G51: 0 | K51: 0 | O51: 0 | S51: 0 | V51: 0 | X51: 0 | Z51: Baffle ceiling
C52: Other | G52: 0 | K52: 0 | O52: 0 | S52: 0 | V52: 0 | X52: 0 | Z52: Other
A53: 11 | B53: Soft Furnishing | C53: Blinds for openings | G53: 0 | K53: 0 | O53: 0 | S53: 0 | V53: 0 | X53: 0 | Y53: Soft Furnishing | Z53: Blinds for openings
C54: Signage | G54: 0 | K54: 0 | O54: 0 | S54: 0 | V54: 0 | X54: =IF(W54="Y",G54,0) -> 0 | Z54: Signage
C55: Writing board | G55: 0 | K55: 0 | O55: 0 | S55: 0 | V55: 0 | X55: 0 | Z55: Writing board
C56: Hardware for furniture | G56: 0 | K56: 0 | O56: 0 | S56: 0 | V56: 0 | X56: 0 | Z56: Hardware for furniture
C57: Other | G57: 0 | K57: 0 | O57: 0 | S57: 0 | V57: 0 | X57: 0 | Z57: Other
A58: 12 | B58: Plumbing fixtures | C58: Water closet | G58: 0 | K58: 0 | O58: 0 | S58: 0 | V58: =(T58*G58)+(U58*G58) -> 0 | X58: 0 | Y58: Plumbing fixtures | Z58: Water closet
C59: Health faucet | G59: 0 | K59: 0 | O59: 0 | S59: 0 | V59: 0 | X59: 0 | Z59: Health faucet
C60: Urinal | G60: 0 | K60: 0 | O60: 0 | S60: 0 | V60: 0 | X60: 0 | Z60: Urinal
C61: Faucet/Tap | G61: 0 | K61: 0 | O61: 0 | S61: 0 | V61: 0 | X61: 0 | Z61: Faucet/Tap
C62: Kitchen / Pantry faucet | G62: 0 | K62: 0 | O62: 0 | S62: 0 | V62: 0 | X62: 0 | Z62: Kitchen / Pantry faucet
C63: Showerhead | G63: 0 | K63: 0 | O63: =N63*G63 -> 0 | S63: 0 | V63: 0 | X63: 0 | Z63: Showerhead
C64: Handheld shower spray | G64: 0 | K64: 0 | O64: 0 | S64: 0 | V64: 0 | X64: 0 | Z64: Handheld shower spray
C65: Others | G65: 0 | K65: 0 | O65: 0 | S65: 0 | V65: 0 | X65: 0 | Z65: Others
A66: 13 | B66: Indoor plants | C66: Snake plant | G66: =D66*F66 -> 0 | K66: =G66 -> 0 | O66: 0 | S66: 0 | V66: 0 | X66: 0 | Y66: Indoor plants | Z66: Snake plant
C67: Peace lily | G67: 0 | K67: 0 | O67: =N67*G67 -> 0 | S67: =R67*G67 -> 0 | V67: =(T67*G67)+(U67*G67) -> 0 | X67: =IF(W67="Y",G67,0) -> 0 | Z67: Peace lily
C68: ZZ plant | G68: 0 | K68: 0 | O68: 0 | S68: 0 | V68: 0 | X68: 0 | Z68: ZZ plant
C69: Other | G69: 0 | K69: 0 | O69: 0 | S69: =R69*G69 -> 0 | V69: 0 | X69: 0 | Z69: Other
A70: 14 | B70: Air conditioning | C70: Air conditioning high side | G70: 0 | K70: 0 | O70: 0 | S70: 0 | V70: 0 | X70: 0 | Y70: Air conditioning | Z70: Air conditioning high side
C71: Air conditioning low side | G71: 0 | K71: 0 | O71: 0 | S71: 0 | V71: 0 | X71: 0 | Z71: Air conditioning low side
A72: 15 | B72: Electrical | C72: Wires | G72: 0 | K72: 0 | O72: 0 | S72: 0 | V72: 0 | X72: 0 | Y72: Electrical | Z72: Wires
C73: Cables | G73: 0 | K73: 0 | O73: 0 | S73: 0 | V73: 0 | X73: 0 | Z73: Cables
C74: MS/ GI pipes / Conduits - Fire hydrant system | G74: 0 | K74: 0 | O74: 0 | S74: 0 | V74: 0 | X74: 0 | Z74: MS/ GI pipes / Conduits - Fire hydrant system
C75: Raceways | G75: 0 | K75: 0 | O75: 0 | S75: 0 | V75: 0 | X75: 0 | Z75: Raceways
C76: Lighting - Square light (12W) | G76: 0 | K76: 0 | O76: 0 | S76: 0 | V76: 0 | X76: 0 | Z76: Lighting - Square light (12W)
C77: Lighting - Square light (22W) | G77: 0 | K77: 0 | O77: 0 | S77: 0 | V77: 0 | X77: 0 | Z77: Lighting - Square light (22W)
C78: Lighting - Decorative light (22W) | G78: 0 | K78: 0 | O78: 0 | S78: 0 | V78: 0 | X78: 0 | Z78: Lighting - Decorative light (22W)
C79: Lighting - Recessed light (6W) | G79: 0 | K79: 0 | O79: 0 | S79: 0 | V79: 0 | X79: 0 | Z79: Lighting - Recessed light (6W)
C80: Sensors | G80: 0 | K80: 0 | O80: 0 | S80: 0 | V80: 0 | X80: 0 | Z80: Sensors
C81: Switch boards | G81: 0 | K81: 0 | O81: 0 | S81: 0 | V81: 0 | X81: 0 | Z81: Switch boards
C82: Switches/ controls | G82: 0 | K82: 0 | O82: 0 | S82: 0 | V82: 0 | X82: 0 | Z82: Switches/ controls
C83: Electrical Panels | G83: 0 | K83: 0 | O83: 0 | S83: 0 | V83: 0 | X83: 0 | Z83: Electrical Panels
C84: Switch gear | G84: 0 | K84: 0 | O84: 0 | S84: 0 | V84: 0 | X84: 0 | Z84: Switch gear
C85: Energy sub-meter | G85: 0 | K85: 0 | O85: 0 | S85: 0 | V85: 0 | X85: 0 | Z85: Energy sub-meter
C86: Appliances - Refrigerator | G86: 0 | K86: 0 | O86: 0 | S86: 0 | V86: 0 | X86: 0 | Z86: Appliances - Refrigerator
C87: Appliances - Printer | G87: 0 | K87: 0 | O87: 0 | S87: 0 | V87: 0 | X87: 0 | Z87: Appliances - Printer
C88: Appliances - UPS | G88: 0 | K88: 0 | O88: 0 | S88: 0 | V88: 0 | X88: 0 | Z88: Appliances - UPS
C89: Other | G89: 0 | K89: 0 | O89: 0 | S89: 0 | V89: 0 | X89: 0 | Z89: Other
B90: Others (not included in the above list) | D90: =SUM(D2:D89) -> 0 | G90: =SUM(G2:G89) -> 0 | K90: =SUM(K2:K89) -> 0 | M90: =SUM(M2:M89) -> 0 | O90: =SUM(O2:O89) -> 0 | P90: =COUNTIF(P2:P89,"Y") -> 0 | Q90: =SUM(Q2:Q89) -> 0 | S90: =SUM(S2:S89) -> 0 | V90: =SUM(V2:V89) -> 0 | X90: =SUM(X2:X89) -> 0
B93: Total material Procured | E93: =G90 -> 0
B94: Percentage of local materials procured | E94: =(K90/G90)*100 -> 
B95: Percentage of recycled content materials procured | E95: =(S90/G90)*100 -> 
B96: Number of type I eco-labelled products procured | E96: =P90 -> 0
B97: Percentage of salvaged materials procured | E97: =(M90/G90)*100 -> 
B98: Percentage of total cost of eco-friendly wood based material procured | E98: =(V90/G90)*100 -> 
B99: Percentage of eco-certified interior furniture procured | E99: =(X90/G90)*100 -> 
B100: Percentage of reused materials procured | E100: =(O90/G90)*100 -> 
B104: 1. Based on the percentage savings, points achieved by the project team to be automatically reflected in checklist and respective credit page. Refer to the point distribution sheet V1 2. Provide multiple addition of rows for other option within each category

Sheet Waste management installation
A1: Quantity of Waste | C1: Drop down: By weight (kg) By volume [cubic meter (m3)
A3: S. NO | B3: Description of Material | C3: Generated | D3: Reused on project site | E3: Sent to recycle vendor | F3: Donate to other project site | G3: Sent to landfill | K3: All the cells filled with yellow, the values to be entered by project team
A4: 1 | B4: ='Ver 1_Master Material Sheet'!C2 -> AAC | C4: 100 | D4: 20 | E4: 30 | F4: 20 | G4: 30
A5: 2 | B5: ='Ver 1_Master Material Sheet'!C3 -> Flyash | C5: 75 | F5: 75
A6: 3 | B6: ='Ver 1_Master Material Sheet'!C4 -> Red brick | C6: 50 | G6: 50
A7: 4 | B7: ='Ver 1_Master Material Sheet'!C5 -> Other | C7: 65 | D7: 15 | E7: 15 | F7: 35
A8: 5 | B8: ='Ver 1_Master Material Sheet'!C6 -> Cement
A9: 6 | B9: ='Ver 1_Master Material Sheet'!C7 -> Other
A10: 7 | B10: ='Ver 1_Master Material Sheet'!C8 -> Plywood
A11: 8 | B11: ='Ver 1_Master Material Sheet'!C9 -> MDF
A12: 9 | B12: ='Ver 1_Master Material Sheet'!C10 -> Laminate
A13: 10 | B13: ='Ver 1_Master Material Sheet'!C11 -> Other
A14: 11 | B14: ='Ver 1_Master Material Sheet'!C12 -> Vitrified Tile
A15: 12 | B15: ='Ver 1_Master Material Sheet'!C13 -> Granite
A16: 13 | B16: ='Ver 1_Master Material Sheet'!C14 -> Carpet
A17: 14 | B17: ='Ver 1_Master Material Sheet'!C15 -> RCC
A18: 15 | B18: ='Ver 1_Master Material Sheet'!C16 -> Raised flooring modular
A19: 16 | B19: ='Ver 1_Master Material Sheet'!C17 -> Laminate
A20: 17 | B20: ='Ver 1_Master Material Sheet'!C18 -> Tile
A21: 18 | B21: ='Ver 1_Master Material Sheet'!C19 -> Dado
A22: 19 | B22: ='Ver 1_Master Material Sheet'!C20 -> Wooden
A23: 20 | B23: ='Ver 1_Master Material Sheet'!C21 -> VDF
A24: 21 | B24: ='Ver 1_Master Material Sheet'!C22 -> Other
A25: 22 | B25: ='Ver 1_Master Material Sheet'!C23 -> Emulsion
A26: 23 | B26: ='Ver 1_Master Material Sheet'!C24 -> Primer
A27: 24 | B27: ='Ver 1_Master Material Sheet'!C25 -> Enamel
A28: 25 | B28: ='Ver 1_Master Material Sheet'!C26 -> Texture
A29: 26 | B29: ='Ver 1_Master Material Sheet'!C27 -> Putty
A30: 27 | B30: ='Ver 1_Master Material Sheet'!C28 -> Other
A31: 28 | B31: ='Ver 1_Master Material Sheet'!C29 -> Workstation
A32: 29 | B32: ='Ver 1_Master Material Sheet'!C30 -> Chair
A33: 30 | B33: ='Ver 1_Master Material Sheet'!C31 -> Storage unit
A34: 31 | B34: ='Ver 1_Master Material Sheet'!C32 -> Meeting room table
A35: 32 | B35: ='Ver 1_Master Material Sheet'!C33 -> Cabin table
A36: 33 | B36: ='Ver 1_Master Material Sheet'!C34 -> Loose furniture
A37: 34 | B37: ='Ver 1_Master Material Sheet'!C35 -> Sofa
A38: 35 | B38: ='Ver 1_Master Material Sheet'!C36 -> Other
A39: 36 | B39: ='Ver 1_Master Material Sheet'!C37 -> Glass
A40: 37 | B40: ='Ver 1_Master Material Sheet'!C38 -> Wood
A41: 38 | B41: ='Ver 1_Master Material Sheet'!C39 -> Aluminium
A42: 39 | B42: ='Ver 1_Master Material Sheet'!C40 -> Gypsum with insulation
A43: 40 | B43: ='Ver 1_Master Material Sheet'!C41 -> Sliding & folding
A44: 41 | B44: ='Ver 1_Master Material Sheet'!C42 -> Other
A45: 42 | B45: ='Ver 1_Master Material Sheet'!C43 -> Wooded door
A46: 43 | B46: ='Ver 1_Master Material Sheet'!C44 -> Glass door
A47: 44 | B47: ='Ver 1_Master Material Sheet'!C45 -> Other
A48: 45 | B48: ='Ver 1_Master Material Sheet'!C46 -> Plywood
A49: 46 | B49: ='Ver 1_Master Material Sheet'!C47 -> Acoustic panel
A50: 47 | B50: ='Ver 1_Master Material Sheet'!C48 -> Other
A51: 48 | B51: ='Ver 1_Master Material Sheet'!C49 -> Grid false ceiling
A52: 49 | B52: ='Ver 1_Master Material Sheet'!C50 -> Gypsum false ceiling
A53: 50 | B53: ='Ver 1_Master Material Sheet'!C51 -> Baffle ceiling
A54: 51 | B54: ='Ver 1_Master Material Sheet'!C52 -> Other
A55: 52 | B55: ='Ver 1_Master Material Sheet'!C53 -> Blinds for openings
A56: 53 | B56: ='Ver 1_Master Material Sheet'!C54 -> Signage
A57: 54 | B57: ='Ver 1_Master Material Sheet'!C55 -> Writing board
A58: 55 | B58: ='Ver 1_Master Material Sheet'!C56 -> Hardware for furniture
A59: 56 | B59: ='Ver 1_Master Material Sheet'!C57 -> Other
A60: 57 | B60: ='Ver 1_Master Material Sheet'!C58 -> Water closet
A61: 58 | B61: ='Ver 1_Master Material Sheet'!C59 -> Health faucet
A62: 59 | B62: ='Ver 1_Master Material Sheet'!C60 -> Urinal
A63: 60 | B63: ='Ver 1_Master Material Sheet'!C61 -> Faucet/Tap
A64: 61 | B64: ='Ver 1_Master Material Sheet'!C62 -> Kitchen / Pantry faucet
A65: 62 | B65: ='Ver 1_Master Material Sheet'!C63 -> Showerhead
A66: 63 | B66: ='Ver 1_Master Material Sheet'!C64 -> Handheld shower spray
A67: 64 | B67: ='Ver 1_Master Material Sheet'!C65 -> Others
A68: 65 | B68: ='Ver 1_Master Material Sheet'!C66 -> Snake plant
A69: 66 | B69: ='Ver 1_Master Material Sheet'!C67 -> Peace lily
A70: 67 | B70: ='Ver 1_Master Material Sheet'!C68 -> ZZ plant
A71: 68 | B71: ='Ver 1_Master Material Sheet'!C69 -> Other
A72: 69 | B72: ='Ver 1_Master Material Sheet'!C70 -> Air conditioning high side
A73: 70 | B73: ='Ver 1_Master Material Sheet'!C71 -> Air conditioning low side
A74: 71 | B74: ='Ver 1_Master Material Sheet'!C72 -> Wires
A75: 72 | B75: ='Ver 1_Master Material Sheet'!C73 -> Cables
A76: 73 | B76: ='Ver 1_Master Material Sheet'!C74 -> MS/ GI pipes / Conduits - Fire hydrant system
A77: 74 | B77: ='Ver 1_Master Material Sheet'!C75 -> Raceways
A78: 75 | B78: ='Ver 1_Master Material Sheet'!C76 -> Lighting - Square light (12W)
A79: 76 | B79: ='Ver 1_Master Material Sheet'!C77 -> Lighting - Square light (22W)
A80: 77 | B80: ='Ver 1_Master Material Sheet'!C78 -> Lighting - Decorative light (22W)
A81: 78 | B81: ='Ver 1_Master Material Sheet'!C79 -> Lighting - Recessed light (6W)
A82: 79 | B82: ='Ver 1_Master Material Sheet'!C80 -> Sensors
A83: 80 | B83: ='Ver 1_Master Material Sheet'!C81 -> Switch boards
A84: 81 | B84: ='Ver 1_Master Material Sheet'!C82 -> Switches/ controls
A85: 82 | B85: ='Ver 1_Master Material Sheet'!C83 -> Electrical Panels
A86: 83 | B86: ='Ver 1_Master Material Sheet'!C84 -> Switch gear
A87: 84 | B87: ='Ver 1_Master Material Sheet'!C85 -> Energy sub-meter
A88: 85 | B88: ='Ver 1_Master Material Sheet'!C86 -> Appliances - Refrigerator
A89: 86 | B89: ='Ver 1_Master Material Sheet'!C87 -> Appliances - Printer
A90: 87 | B90: ='Ver 1_Master Material Sheet'!C88 -> Appliances - UPS
A91: 88 | B91: ='Ver 1_Master Material Sheet'!C89 -> Other
B92: Total | C92: =SUM(C4:C91) -> 290 | D92: =SUM(D4:D91) -> 35 | E92: 45 | F92: 130 | G92: =SUM(G4:G91) -> 80
B94: % of waste diverted away from landfill | E94: =(C92-(SUM(D92:F92)))/C92 -> 0.275862069
A97: 1. Based on the percentage savings, points achieved by the project team to be automatically reflected in checklist and respective credit page. Refer to the point distribution sheet V1 & V2 2. Provide multiple addition of rows for multiple input field 3. If project is meeting exemplary performance threshold a pop up message to be reflected. ( only for version 2 ) Display - "This credit is eligible for exemplary performance" 4. Change name of sheet to "'Cal _ Waste Management (During Installation)"

Sheet Ver 1 Cal _ Daylight CO2 Noise
B3: Description of spaces (e.g. core workstation, meeting room, electrical room, restroom etc) | C3: Total carpet area (sq ft) | D3: Daylighting | I3: CO2 Monitoring (Mechanical Ventilation ) | K3: Material Acoustic performance - Noise Criteria | P3: Outdoor view | V3: Measured lux level
D4: Space type | E4: Daylight Benchmark Lux Level | F4: Simulated lux level | G4: Daylight Compliant Area (sq ft) | H4: Meets daylight credit compliance | I4: Provision of CO2 sensor | J4: Compliant Area (sq ft) | K4: Space Type | L4: Baseline maximum Value (dB) | M4: Measured Value (dB) | N4: Compliant Area (sq ft) | O4: Meets Credit Compliance | P4: Compliant Area (sq ft) | R4: Setup Table | V4: Simulated lux level
B5: =_xlfn._xlws.FILTER('Cal _ Area Statement Circulatio'!B4:B19,'Cal _ Area Statement Circulatio'!C4:C19 = "Regularly occupied space") -> Workstation Area | C5: =_xlfn._xlws.FILTER('Cal _ Area Statement Circulatio'!E4:E19,'Cal _ Area Statement Circulatio'!C4:C19 = "Regularly occupied space") -> 5326 | D5: General Offices | E5: =VLOOKUP(D5,R22:S36,2,FALSE) -> 300 | F5: 301 | G5: =IF(F5>=E5,C5,0) -> 5326 | H5: =IF(F5>=E5,TRUE,FALSE) -> TRUE | I5: Yes | J5: =IF(I5="yes",C5,0) -> 5326 | K5: Enclosed office | L5: =IF(K5 ="Enclosed office",$S$7,$S$8) -> 35 | M5: 34 | N5: =IF(M5<L5,C5,0) -> 5326 | O5: =IF(M5<L5,TRUE, FALSE) -> TRUE | P5: 20 | R5: Noise Criteria
B6: Workstation Area-JS | C6: 490 | D6: Deep Plan General Offices | E6: =VLOOKUP(D6,R23:S37,2,FALSE) -> 500 | F6: 400 | G6: 0 | H6: FALSE | I6: No | J6: =IF(I6="yes",C6,0) -> 0 | K6: Enclosed office | L6: =IF(K6 ="Enclosed office",$S$7,$S$8) -> 35 | M6: 32 | N6: =IF(M6<L6,C6,0) -> 490 | O6: =IF(M6<L6,TRUE, FALSE) -> TRUE | P6: 10 | R6: Space Type | S6: Baseline maximum Value (dB) | V6: Yes
B7: Café Area | C7: 692 | D7: Deep Plan General Offices | E7: =VLOOKUP(D7,R22:S36,2,FALSE) -> 500 | F7: 300 | G7: =IF(F7>=E7,C7,0) -> 0 | H7: =IF(F7>=E7,TRUE,FALSE) -> FALSE | I7: Yes | J7: 692 | K7: Enclosed office | L7: =IF(K7 ="Enclosed office",$S$7,$S$8) -> 35 | M7: 32 | N7: 692 | O7: TRUE | P7: 15 | R7: Enclosed office | S7: 35 | V7: No
B8: Meetings Room Area | C8: 742 | D8: Deep Plan General Offices | E8: =VLOOKUP(D8,R22:S36,2,FALSE) -> 500 | F8: 299 | G8: 0 | H8: =IF(F8>=E8,TRUE,FALSE) -> FALSE | I8: Yes | J8: 742 | K8: Open office | L8: =IF(K8 ="Enclosed office",$S$7,$S$8) -> 40 | M8: 32 | N8: 742 | O8: TRUE | P8: 80 | R8: Open office | S8: 40
B9: Cabins Area | C9: 325 | D9: Deep Plan General Offices | E9: =VLOOKUP(D9,R22:S36,2,FALSE) -> 500 | G9: 0 | H9: FALSE | I9: Yes | J9: 325 | K9: Enclosed office | L9: =IF(K9 ="Enclosed office",$S$7,$S$8) -> 35 | M9: 43 | N9: =IF(M9<L9,C9,0) -> 0 | O9: =IF(M9<L9,TRUE, FALSE) -> FALSE | P9: 15
B10: Reception Area | C10: 319 | D10: Drawing Boards | E10: =VLOOKUP(D10,R22:S36,2,FALSE) -> 500 | G10: 0 | H10: FALSE | L10: =IF(K10 ="Enclosed office",$S$7,$S$8) -> 40 | N10: =IF(M10<L10,C10,0) -> 319 | O10: =IF(M10<L10,TRUE, FALSE) -> TRUE
B11: Phone Booths Area | C11: 260 | D11: Computer Work Stations | E11: =VLOOKUP(D11,R22:S36,2,FALSE) -> 300 | G11: 0 | H11: FALSE | K11: Enclosed office | L11: 35 | N11: 260 | O11: TRUE
B12: Lounge Areas | C12: 177 | D12: Computer Work Stations | E12: =VLOOKUP(D12,R22:S36,2,FALSE) -> 300 | G12: 0 | H12: FALSE | L12: 40 | N12: 177 | O12: TRUE
B13: Board Room | C13: 524 | D13: Computer Work Stations | E13: =VLOOKUP(D13,R22:S36,2,FALSE) -> 300 | G13: 0 | H13: FALSE | L13: 40 | N13: 524 | O13: TRUE
D14: Computer Work Stations | E14: =VLOOKUP(D14,R22:S36,2,FALSE) -> 300 | G14: 0 | H14: FALSE | L14: 40 | N14: 0 | O14: TRUE
D15: Computer Work Stations | E15: =VLOOKUP(D15,R22:S36,2,FALSE) -> 300 | G15: 0 | H15: FALSE | L15: 40 | N15: 0 | O15: TRUE
D16: Computer Work Stations | E16: =VLOOKUP(D16,R22:S36,2,FALSE) -> 300 | G16: 0 | H16: FALSE | L16: 40 | N16: 0 | O16: TRUE
D17: Computer Work Stations | E17: =VLOOKUP(D17,R22:S36,2,FALSE) -> 300 | G17: 0 | H17: FALSE | L17: 40 | N17: 0 | O17: TRUE
D18: Computer Work Stations | E18: =VLOOKUP(D18,R22:S36,2,FALSE) -> 300 | G18: 0 | H18: FALSE | L18: 40 | N18: 0 | O18: TRUE
D19: Drawing Boards | E19: =VLOOKUP(D19,R22:S36,2,FALSE) -> 500 | G19: 0 | H19: FALSE | L19: =IF(K19 ="Enclosed office",$S$7,$S$8) -> 40 | N19: 0 | O19: TRUE
R20: Daylighting
R21: Space Type | S21: Average Illuminance(in lux)
R22: General Offices | S22: 300
B23: Total regularly occupied area (sq ft) | H23: =SUM(_xlfn.ANCHORARRAY(C5)) -> 8855 | R23: Deep Plan General Offices | S23: 500
R24: Computer Work Stations | S24: 300
B25: Daylighting | K25: All the cells highlighted with yellow background are input fields (data to be entered by project team) | R25: Conference Rooms, Executive Offices | S25: 300
B26: Total area with adequate daylight (sq ft ) | H26: =SUM(G5:G9) -> 5326 | R26: Computer and Data Preparation Rooms | S26: 300
B27: Percentage of regularly occupied spaces with access to daylight | H27: =H26/H23 -> 0.6014680971 | R27: Drawing Boards | S27: 500
R28: Print rooms | S28: 200
B29: CO2 Monitoring (Mechanical Ventilation ) | R29: Counter, Office Areas | S29: 300
B30: Total regularly occupied area covered by CO2 sensors (sq ft) | H30: =SUM(J5:J9) -> 7085 | R30: Supermarkets/ Hyper Markets | S30: 300
B31: Percentage of regularly occupied area meeting CO2 monitoring credit compliance | H31: =H30/H23 -> 0.8001129305 | R31: Showrooms for Large Objects example Cars, Furniture | S31: 300
R32: Hotel– Entrance Halls | S32: 50
B33: Material Acoustic performance - Noise Criteria | R33: Hotel– Reception/ Cashiers | S33: 200
B34: Office area meeting noise level To be changed to "Meets noise criteria requirements for all regularly occupied spaces" | H34: =AND(EXACT(O22:O30, "TRUE")) -> FALSE | R34: Hotel– Bed room | S34: 30
R35: Hotel– Bathrooms | S35: 50
B36: Outdoor view | R36: Food Preparation & Stores, Cellars, Lifts &Corridors | S36: 100
B37: Total regularly occupied area with access to outdoor views | H37: =SUM(P5:P9) -> 140
B38: Percentage of regularly occupied area with access to outdoor views | H38: =H37/H23 -> 0.01581027668
B40: 1. Based on the percentage savings, points achieved by the project team to be automatically reflected in checklist and respective credit page. Refer to the point distribution sheet V1 & V2 2. Provide multiple addition of rows for multiple input field 3. Change name of sheet to "Ver 1 Cal _ Daylight/CO2/Noise/Outdoor"

Sheet Ver 2 Cal _ Daylight Noise
B3: Description of spaces (e.g. core workstation, meeting room, electrical room, restroom etc) | C3: Total carpet area (sq ft) | D3: Daylighting | I3: Material Acoustic performance - Noise Criteria | N3: Outdoor view | Q3: All the cells highlighted with yellow background are input fields (data to be entered by project team)
D4: Space type | E4: Daylight Benchmark Lux Levels | F4: Simulated lux level | G4: Daylight Compliant Area (sq ft) | H4: Meets daylight credit compliance | I4: Space Type | J4: Baseline maximum Value (dB) | K4: Measured Value (dB) | L4: Compliant Area | M4: Meets Credit Compliance | N4: Compliant Area (sq ft)
B5: =_xlfn._xlws.FILTER('Cal _ Area Statement Circulatio'!B4:B19,'Cal _ Area Statement Circulatio'!C4:C19 = "Regularly occupied space") -> Workstation Area | C5: =_xlfn._xlws.FILTER('Cal _ Area Statement Circulatio'!E4:E19,'Cal _ Area Statement Circulatio'!C4:C19 = "Regularly occupied space") -> 5326 | D5: Deep Plan General Offices | E5: =VLOOKUP(D5,T24:U38,2,FALSE) -> 500 | F5: 301 | G5: =IF(F5>=E5,C5,0) -> 0 | H5: =IF(F5>=E5,TRUE,FALSE) -> FALSE | I5: Open office | J5: =IF(I5 ="Enclosed office",$U$9,$U$10) -> 40 | K5: 34 | L5: =IF(K5<J5,C5,0) -> 5326 | M5: =IF(K5<J5,TRUE, FALSE) -> TRUE | N5: 20 | T5: Setup Table
B6: Workstation Area-JS | C6: 490 | D6: Deep Plan General Offices | E6: =VLOOKUP(D6,T24:U38,2,FALSE) -> 500 | F6: 400 | G6: =IF(F6>=E6,C6,0) -> 0 | H6: =IF(F6>=E6,TRUE,FALSE) -> FALSE | I6: Open office | J6: =IF(I6 ="Enclosed office",$U$9,$U$10) -> 40 | K6: 32 | L6: =IF(K6<J6,C6,0) -> 490 | M6: =IF(K6<J6,TRUE, FALSE) -> TRUE | N6: 10
B7: Café Area | C7: 692 | D7: Deep Plan General Offices | E7: =VLOOKUP(D7,T24:U38,2,FALSE) -> 500 | F7: 300 | G7: =IF(F7>=E7,C7,0) -> 0 | H7: =IF(F7>=E7,TRUE,FALSE) -> FALSE | J7: =IF(I7 ="Enclosed office",$U$9,$U$10) -> 40 | K7: 32 | L7: =IF(K7<J7,C7,0) -> 692 | M7: TRUE | N7: 15 | T7: Noise Criteria
B8: Meetings Room Area | C8: 742 | D8: Deep Plan General Offices | E8: =VLOOKUP(D8,T24:U38,2,FALSE) -> 500 | F8: 299 | G8: 0 | H8: =IF(F8>=E8,TRUE,FALSE) -> FALSE | J8: =IF(I8 ="Enclosed office",$U$9,$U$10) -> 40 | K8: 32 | L8: =IF(K8<J8,C8,0) -> 742 | M8: TRUE | N8: 80 | T8: Space Type | U8: Baseline maximum Value (dB) | V8: Yes
B9: Cabins Area | C9: 325 | D9: Computer Work Stations | E9: =VLOOKUP(D9,T24:U38,2,FALSE) -> 300 | G9: 0 | H9: FALSE | J9: 40 | K9: 43 | L9: =IF(K9<J9,C9,0) -> 0 | M9: FALSE | N9: 15 | T9: Enclosed office | U9: 35 | V9: No
B10: Reception Area | C10: 319 | E10: =VLOOKUP(D10,T24:U38,2,FALSE) ->  | J10: 40 | L10: =IF(K10<J10,C10,0) -> 319 | M10: TRUE | T10: Open office | U10: 40
B11: Phone Booths Area | C11: 260 | E11: =VLOOKUP(D11,T24:U38,2,FALSE) ->  | J11: 40 | L11: 260 | M11: TRUE
B12: Lounge Areas | C12: 177 | D12: Computer Work Stations | E12: =VLOOKUP(D12,T24:U38,2,FALSE) -> 300 | G12: 0 | H12: FALSE | J12: 40 | L12: 177 | M12: TRUE
B13: Board Room | C13: 524 | E13: =VLOOKUP(D13,T24:U38,2,FALSE) ->  | J13: 40 | L13: 524 | M13: TRUE
E14: =VLOOKUP(D14,T24:U38,2,FALSE) ->  | J14: 40 | L14: 0 | M14: TRUE
E15: =VLOOKUP(D15,T24:U38,2,FALSE) ->  | J15: 40 | L15: 0 | M15: TRUE
E16: =VLOOKUP(D16,T24:U38,2,FALSE) ->  | J16: 40 | L16: 0 | M16: TRUE
E17: =VLOOKUP(D17,T24:U38,2,FALSE) ->  | J17: 40 | L17: 0 | M17: TRUE
E18: =VLOOKUP(D18,T24:U38,2,FALSE) ->  | J18: 40 | L18: 0 | M18: TRUE
E19: =VLOOKUP(D19,T24:U38,2,FALSE) ->  | J19: 40 | L19: 0 | M19: TRUE
T22: Daylighting
B23: Total regularly occupied area (sq ft) | H23: =SUM(_xlfn.ANCHORARRAY(C5)) -> 8855 | T23: Space Type | U23: Average Illuminance(in lux)
T24: General Offices | U24: 300
B25: Daylighting | T25: Deep Plan General Offices | U25: 500
B26: Total area with adequate daylight (sq ft ) | H26: =SUM(G5:G9) -> 0 | T26: Computer Work Stations | U26: 300
B27: Percentage of regularly occupied spaces with access to daylight | H27: =H26/H23 -> 0 | T27: Conference Rooms, Executive Offices | U27: 300
T28: Computer and Data Preparation Rooms | U28: 300
B29: Material Acoustic performance - Noise Criteria | T29: Drawing Boards | U29: 500
B30: Meets noise criteria requirements for all regularly occupied spaces | H30: =AND(EXACT(O22:O30, "TRUE")) -> FALSE | T30: Print rooms | U30: 200
T31: Counter, Office Areas | U31: 300
B32: Outdoor view | T32: Supermarkets/ Hyper Markets | U32: 300
B33: Total regularly occupied area with access to outdoor views | H33: =SUM(N5:N9) -> 140 | T33: Showrooms for Large Objects example Cars, Furniture | U33: 300
B34: Percentage of regularly occupied area with access to outdoor views | H34: =H33/H23 -> 0.01581027668 | T34: Hotel– Entrance Halls | U34: 50
T35: Hotel– Reception/ Cashiers | U35: 200
T36: Hotel– Bed room | U36: 30
T37: Hotel– Bathrooms | U37: 50
T38: Food Preparation & Stores, Cellars, Lifts &Corridors | U38: 100

Sheet Fresh air AC
C1: Type of fresh air system | D1: Capacity of fresh air system (CFM)
C2: Inline fan 1 | D2: 50
C3: Inline fan 2 | D3: 50
C4: TFA 1 | D4: 100
A9: Fresh Air System/ TFA To be changed to "Type of fresh air system" | B9: TFA Capacity (CFM) To be changed to "Capacity of fresh air system (CFM)" | C9: Regularly occupied Spaces (e.g. Core workstation, meeting room, cabin etc) | D9: Carpet area of regularly occupied space (sq ft) | E9: Space Type | F9: Type of fresh air system | G9: Outdoor Air Rate (CFM) / Unit area | H9: Design Occupancy | I9: Outdoor Air Rate (CFM) /Person | J9: Minimum ventilation rate required (CFM) - Baseline | K9: 10% more than minimum ventilation rate required
A10: Inline fan 1 | B10: 150 | C10: =_xlfn._xlws.FILTER('Cal _ Area Statement Circulatio'!B4:B19,'Cal _ Area Statement Circulatio'!C4:C19 = "Regularly occupied space") -> Workstation Area | D10: =_xlfn._xlws.FILTER('Cal _ Area Statement Circulatio'!E4:E19,'Cal _ Area Statement Circulatio'!C4:C19 = "Regularly occupied space") -> 5326 | E10: Office space/ reception area/ telephone/ data entry/ main entry lobby | F10: Inline fan 1 | G10: =VLOOKUP(E10,U25:V35,2,FALSE) -> 0.06 | H10: 14 | I10: =VLOOKUP(E10,Q14:R35,2,FALSE) -> 5 | J10: =(H10*I10)+(G10*D10) -> 389.56 | K10: =J10+(10%*J10) -> 428.516
C11: Workstation Area-JS | D11: 490 | E11: Conference/meeting | F11: Inline fan 1 | G11: =VLOOKUP(E11,U25:V35,2,FALSE) -> 0.06 | H11: 3 | I11: =VLOOKUP(E11,Q14:R35,2,FALSE) -> 5 | J11: =(H11*I11)+(G11*D11) -> 44.4 | K11: =J11+(10%*J11) -> 48.84 | Q11: Space Type | R11: People | U11: Space Type | V11: Area
C12: Café Area | D12: 692 | E12: Conference/meeting | F12: Inline fan 2 | G12: =VLOOKUP(E12,U25:V35,2,FALSE) -> 0.06 | H12: 9 | I12: =VLOOKUP(E12,Q14:R35,2,FALSE) -> 5 | J12: =(H12*I12)+(G12*D12) -> 86.52 | K12: 95.172 | R12: Outdoor Air Rate (Rp) | V12: Outdoor Air Rate (Ra)
A13: Inline Fan 2 | B13: 100 | C13: Meetings Room Area | D13: 742 | E13: Office space/ reception area/ telephone/ data entry/ main entry lobby | F13: TFA 1 | G13: =VLOOKUP(E13,U25:V35,2,FALSE) -> 0.06 | H13: 2 | I13: =VLOOKUP(E13,Q14:R35,2,FALSE) -> 5 | J13: =(H13*I13)+(G13*D13) -> 54.52 | K13: 59.972 | R13: (cfm/person) | V13: (cfm/sq.ft)
C14: Cabins Area | D14: 325 | E14: Cafeteria/Fast food dining | F14: Inline Fan 3 | G14: =VLOOKUP(E14,U25:V35,2,FALSE) -> 0.18 | H14: 3 | I14: =VLOOKUP(E14,Q14:R35,2,FALSE) -> 7.7 | J14: =(H14*I14)+(G14*D14) -> 81.6 | K14: 89.76 | Q14: Restaurant Dining rooms | R14: 7.5 | U14: Restaurant Dining rooms | V14: 0.18
C15: Reception Area | D15: 319 | G15: =VLOOKUP(E15,U26:V36,2,FALSE) ->  | I15: =VLOOKUP(E15,Q15:R36,2,FALSE) ->  | J15: =(H15*I15)+(G15*D15) -> 
C16: Phone Booths Area | D16: 260
C17: Lounge Areas | D17: 177
C18: Board Room | D18: 524
Q25: Cafeteria/Fast food dining | R25: 7.7 | U25: Cafeteria/Fast food dining | V25: 0.18
A26: Mandatory fresh-air requirement (CFM) | I26: =SUM(J10:J14) -> 656.6 | Q26: Conference/meeting | R26: 5 | U26: Conference/meeting | V26: 0.06
A27: Fresh air Ventilation provided in Project (CFM) | I27: =SUM(D2:D5) -> 200 | Q27: Hotels-bed/living rooms | R27: 5 | U27: Hotels-bed/living rooms | V27: 0.06
A28: Percentage of fresh air supplied against the ASHRAE 62.1 baseline To be changed to "Percentage of fresh air supplied against the ASHRAE 62.1 baseline" | I28: =(I27-I26)/I26 -> -0.6954005483 | Q28: Office space/ reception area/ telephone/ data entry/ main entry lobby | R28: 5 | U28: Office space/ reception area/ telephone/ data entry/ main entry lobby | V28: 0.06
A29: Design Occupancy | I29: =SUM(H10:H14) -> 31 | Q29: Libraries | R29: 5 | U29: Libraries | V29: 0.12
A30: Total regularly occupied area (sq ft) | I30: =SUM(D10:D14) -> 7575 | Q30: Retail Spaces | R30: 7.5 | U30: Retail Spaces | V30: 0.06
Q31: Super Market | R31: 7.5 | U31: Super Market | V31: 0.06
A32: 1. Based on the percentage savings, points achieved by the project team to be automatically reflected in checklist and respective credit page. Refer to the point distribution sheet V1 & V2 2. Provide multiple addition of rows for other option within each category 3. Kindly name the calculation sheet from Annexure Fresh Air Ac to "Cal _ Fresh Air Mechanical Ventilation" | Q32: Auditorium | R32: 5 | U32: Auditorium | V32: 0.06
Q33: Health Club | R33: 20 | U33: Health Club | V33: 0.06
Q34: Corridors | U34: Corridors | V34: 0.06
Q35: Computer Lab | R35: 10 | U35: Computer Lab | V35: 0.12

Sheet Occupant wellbeing facility
A3: S.No | B3: Occupant wellbeing facilities provided | C3: No of occupants served by each facility | D3: No of facility | E3: Total occupants
A4: 1 | B4: Table tennis | C4: 2 | D4: 4 | E4: =D4*C4 -> 8
A5: 2 | B5: Carrom | C5: 1 | D5: 4 | E5: =D5*C5 -> 4
A6: 3 | B6: Foosball | C6: 1 | D6: 2 | E6: 2
A7: 4 | B7: Gym | C7: 1 | D7: 10 | E7: 10
A8: 5 | B8: Other
A9: 6 | B9: Other
B11: Total number occupants with access to occupant wellbeing facilities | E11: =SUM(E4:E9) -> 24
B12: Permanent Occupancy | E12: ='Project Details'!B12 -> 184
B13: Percentage of occupants with access to recreational facilities at any given point of time | E13: =E11/E12 -> 0.1304347826
B15: 1. Based on the percentage savings, points achieved by the project team to be automatically reflected in checklist and respective credit page. Refer to the point distribution sheet V1 & V2 2. Provide multiple addition of rows for multiple input field 3. Kindly change the name of this calculation sheet from Annexure Acoustic to "Cal _Occupant Wellbeing facilities"
